Workbook

Sheet FOURIER
A1: MASS M | B1: 1 | C1: t | E1: INPUT | F1: k | G1: TIME (Sec) | H1: DDY,Real | I1: DDY,IMAG | K1: FOURIER | L1: FREQ. (Hz) | M1: C(Rk) | N1: C(Ik) | O1: C(w) | P1: q(w)
A2: STIFFNESS K | B2: 5 | C2: kN/m | E2: GROUND | F2: 0 | G2: =B$6*(F3-1) -> 0 | H2: 0 | I2: 0 | K2: TRANSFORM | L2: =(F2)/B$9/B$6 -> 0 | O2: =SQRT(M2^2+N2^2) -> 0 | P2: =ATAN(N2/M2) -> 
A3: DAMPING C | B3: 0.2 | C3: kNsec/m | E3: MOTION | F3: 1 | G3: 0.02 | H3: 0.7237 | I3: 0 | L3: =(F3)/B$9/B$6 -> 0.0244140625 | O3: =SQRT(M3^2+N3^2) -> 0 | P3: =ATAN(N3/M3) -> 
A4: ANGULAR FREQUENCY ω0 | B4: =SQRT(B2/B1) -> 2.236067977 | C4: 1/sec | F4: 2 | G4: 0.04 | H4: 0.6937 | I4: 0 | L4: 0.048828125 | O4: 0
A5: FREQUENCY f0 | B5: =B4/2/PI() -> 0.3558812717 | C5: 1/sec | F5: 3 | G5: 0.06 | H5: -0.3562 | I5: 0 | L5: 0.0732421875 | O5: 0
A6: TIME INTERVAL Δt | B6: 0.02 | C6: sec | F6: 4 | G6: 0.08 | H6: -2.0062 | I6: 0 | L6: 0.09765625 | O6: 0
A7: DURATION T | B7: =B6*2048 -> 40.96 | C7: sec | F7: 5 | G7: 0.1 | H7: -2.9062 | I7: 0 | L7: 0.1220703125 | O7: 0
A8: DAMPING COEFFICIENT h | B8: =B3/2/SQRT(B1*B2) -> 0.04472135955 | F8: 6 | G8: 0.12 | H8: -1.7662 | I8: 0 | L8: 0.146484375 | O8: 0
A9: NUMBER OF DATA N | B9: 2048 | F9: 7 | G9: 0.14 | H9: -0.3562 | I9: 0 | L9: 0.1708984375 | O9: 0
A10: NATURALPERIOD T0 | B10: =1/B5 -> 2.809925892 | C10: sec | F10: 8 | G10: 0.16 | H10: -0.9262 | I10: 0 | L10: 0.1953125 | O10: 0
F11: 9 | G11: 0.18 | H11: -0.4462 | I11: 0 | L11: 0.2197265625 | O11: 0
A12: INPUT REAL | B12: H | F12: 10 | G12: 0.2 | H12: 3.2437 | I12: 0 | L12: 0.244140625 | O12: 0
A13: INPUT IMAG | B13: I | F13: 11 | G13: 0.22 | H13: 3.5137 | I13: 0 | L13: 0.2685546875 | O13: 0
A14: OUTPUT FOURIER REAL | B14: M | F14: 12 | G14: 0.24 | H14: -2.0362 | I14: 0 | L14: 0.29296875 | O14: 0
A15: OUTPUT FOURIER IMAG | B15: N | F15: 13 | G15: 0.26 | H15: -6.386 | I15: 0 | L15: 0.3173828125 | O15: 0
F16: 14 | G16: 0.28 | H16: -5.696 | I16: 0 | L16: 0.341796875 | O16: 0
A17: ※オレンジで塗られた箇所はVBAで計算 | F17: 15 | G17: 0.3 | H17: -3.6261 | I17: 0 | L17: 0.3662109375 | O17: 0
F18: 16 | G18: 0.32 | H18: -4.1061 | I18: 0 | L18: 0.390625 | O18: 0
A19: *最初に | F19: 17 | G19: 0.34 | H19: -2.5461 | I19: 0 | L19: 0.4150390625 | O19: 0
A20: 質量M＝１t | F20: 18 | G20: 0.36 | H20: 0.1838 | I20: 0 | L20: 0.439453125 | O20: 0
A21: 剛性K＝5kN/m | F21: 19 | G21: 0.38 | H21: -0.5062 | I21: 0 | L21: 0.4638671875 | O21: 0
A22: 減衰係数C＝0.20kNsec/m | F22: 20 | G22: 0.4 | H22: -4.556 | I22: 0 | L22: 0.48828125 | O22: 0
A23: で設定して計算し、RESPONSEの応答が | F23: 21 | G23: 0.42 | H23: -9.3259 | I23: 0 | L23: 0.5126953125 | O23: 0
A24: FORTRAN（Newmark-b）法と一致することを | F24: 22 | G24: 0.44 | H24: -5.696 | I24: 0 | L24: 0.537109375 | O24: 0
A25: 確認する。 | F25: 23 | G25: 0.46 | H25: 2.5238 | I25: 0 | L25: 0.5615234375 | O25: 0
A26: その後、各変数を変化させ | F26: 24 | G26: 0.48 | H26: 4.6837 | I26: 0 | L26: 0.5859375 | O26: 0
A27: 応答がどのように変化するかをレポートする | F27: 25 | G27: 0.5 | H27: 4.4437 | I27: 0 | L27: 0.6103515625 | O27: 0
F28: 26 | G28: 0.52 | H28: 9.2436 | I28: 0 | L28: 0.634765625 | O28: 0
F29: 27 | G29: 0.54 | H29: 13.6834 | I29: 0 | L29: 0.6591796875 | O29: 0
F30: 28 | G30: 0.56 | H30: 8.2236 | I30: 0 | L30: 0.68359375 | O30: 0
F31: 29 | G31: 0.58 | H31: 6.6337 | I31: 0 | L31: 0.7080078125 | O31: 0
F32: 30 | G32: 0.6 | H32: 3.9937 | I32: 0 | L32: 0.732421875 | O32: 0
A33: ※無断複製、転載を禁ず | F33: 31 | G33: 0.62 | H33: -6.5359 | I33: 0 | L33: 0.7568359375 | O33: 0
A34: ©Tokyo Tech Takeuchi Lab. | F34: 32 | G34: 0.64 | H34: -11.0958 | I34: 0 | L34: 0.78125 | O34: 0
A35: All rights reserved | F35: 33 | G35: 0.66 | H35: 0.4239 | I35: 0 | L35: 0.8056640625 | O35: 0
F36: 34 | G36: 0.68 | H36: 14.9134 | I36: 0 | L36: 0.830078125 | O36: 0
F37: 35 | G37: 0.7 | H37: 2.1938 | I37: 0 | L37: 0.8544921875 | O37: 0
F38: 36 | G38: 0.72 | H38: -8.0659 | I38: 0 | L38: 0.87890625 | O38: 0
F39: 37 | G39: 0.74 | H39: 4.4138 | I39: 0 | L39: 0.9033203125 | O39: 0
F40: 38 | G40: 0.76 | H40: 15.9034 | I40: 0 | L40: 0.927734375 | O40: 0
F41: 39 | G41: 0.78 | H41: 24.4532 | I41: 0 | L41: 0.9521484375 | O41: 0
F42: 40 | G42: 0.8 | H42: 36.6928 | I42: 0 | L42: 0.9765625 | O42: 0
F43: 41 | G43: 0.82 | H43: 38.3727 | I43: 0 | L43: 1.000976562 | O43: 0
F44: 42 | G44: 0.84 | H44: 20.1633 | I44: 0 | L44: 1.025390625 | O44: 0
F45: 43 | G45: 0.86 | H45: 3.5738 | I45: 0 | L45: 1.049804688 | O45: 0
F46: 44 | G46: 0.88 | H46: -1.826 | I46: 0 | L46: 1.07421875 | O46: 0
F47: 45 | G47: 0.9 | H47: 0.0039 | I47: 0 | L47: 1.098632812 | O47: 0
F48: 46 | G48: 0.92 | H48: 14.7935 | I48: 0 | L48: 1.123046875 | O48: 0
F49: 47 | G49: 0.94 | H49: 3.3938 | I49: 0 | L49: 1.147460938 | O49: 0
F50: 48 | G50: 0.96 | H50: -40.1948 | I50: 0 | L50: 1.171875 | O50: 0
F51: 49 | G51: 0.98 | H51: -49.7945 | I51: 0 | L51: 1.196289062 | O51: 0
F52: 50 | G52: 1 | H52: -36.1449 | I52: 0 | L52: 1.220703125 | O52: 0
F53: 51 | G53: 1.02 | H53: -22.0454 | I53: 0 | L53: 1.245117188 | O53: 0
F54: 52 | G54: 1.04 | H54: -9.6557 | I54: 0 | L54: 1.26953125 | O54: 0
F55: 53 | G55: 1.06 | H55: -0.896 | I55: 0 | L55: 1.293945312 | O55: 0
F56: 54 | G56: 1.08 | H56: 0.364 | I56: 0 | L56: 1.318359375 | O56: 0
F57: 55 | G57: 1.1 | H57: -20.6954 | I57: 0 | L57: 1.342773438 | O57: 0
F58: 56 | G58: 1.12 | H58: -31.405 | I58: 0 | L58: 1.3671875 | O58: 0
F59: 57 | G59: 1.14 | H59: -24.9552 | I59: 0 | L59: 1.391601562 | O59: 0
F60: 58 | G60: 1.16 | H60: -14.0656 | I60: 0 | L60: 1.416015625 | O60: 0
F61: 59 | G61: 1.18 | H61: 3.6639 | I61: 0 | L61: 1.440429688 | O61: 0
F62: 60 | G62: 1.2 | H62: 10.9837 | I62: 0 | L62: 1.46484375 | O62: 0
F63: 61 | G63: 1.22 | H63: -2.1259 | I63: 0 | L63: 1.489257812 | O63: 0
F64: 62 | G64: 1.24 | H64: -16.7955 | I64: 0 | L64: 1.513671875 | O64: 0
F65: 63 | G65: 1.26 | H65: -16.4055 | I65: 0 | L65: 1.538085938 | O65: 0
F66: 64 | G66: =B$6*(F67-1) -> 1.28 | H66: -12.7756 | I66: 0 | L66: 1.5625 | O66: 0
F67: 65 | G67: 1.3 | H67: -9.9557 | I67: 0 | L67: =(F67)/B$9/B$6 -> 1.586914062 | O67: =SQRT(M67^2+N67^2) -> 0 | P67: =ATAN(N67/M67) -> 
F68: 66 | G68: 1.32 | H68: -4.5558 | I68: 0 | L68: 1.611328125 | O68: 0
F69: 67 | G69: 1.34 | H69: -4.0758 | I69: 0 | L69: 1.635742188 | O69: 0
F70: 68 | G70: 1.36 | H70: -5.8458 | I70: 0 | L70: 1.66015625 | O70: 0
F71: 69 | G71: 1.38 | H71: -13.5855 | I71: 0 | L71: 1.684570312 | O71: 0
F72: 70 | G72: 1.4 | H72: -26.7551 | I72: 0 | L72: 1.708984375 | O72: 0
F73: 71 | G73: 1.42 | H73: -20.6953 | I73: 0 | L73: 1.733398438 | O73: 0
F74: 72 | G74: 1.44 | H74: 24.1533 | I74: 0 | L74: 1.7578125 | O74: 0
F75: 73 | G75: 1.46 | H75: 65.4621 | I75: 0 | L75: 1.782226562 | O75: 0
F76: 74 | G76: 1.48 | H76: 44.8227 | I76: 0 | L76: 1.806640625 | O76: 0
F77: 75 | G77: 1.5 | H77: 0.8441 | I77: 0 | L77: 1.831054688 | O77: 0
F78: 76 | G78: 1.52 | H78: -14.9055 | I78: 0 | L78: 1.85546875 | O78: 0
F79: 77 | G79: 1.54 | H79: 7.3239 | I79: 0 | L79: 1.879882812 | O79: 0
F80: 78 | G80: 1.56 | H80: 30.4832 | I80: 0 | L80: 1.904296875 | O80: 0
F81: 79 | G81: 1.58 | H81: 13.4137 | I81: 0 | L81: 1.928710938 | O81: 0
F82: 80 | G82: 1.6 | H82: -12.0255 | I82: 0 | L82: 1.953125 | O82: 0
F83: 81 | G83: 1.62 | H83: -24.1151 | I83: 0 | L83: 1.977539062 | O83: 0
F84: 82 | G84: 1.64 | H84: -28.495 | I84: 0 | L84: 2.001953125 | O84: 0
F85: 83 | G85: 1.66 | H85: -14.0954 | I85: 0 | L85: 2.026367188 | O85: 0
F86: 84 | G86: 1.68 | H86: -10.6755 | I86: 0 | L86: 2.05078125 | O86: 0
F87: 85 | G87: 1.7 | H87: -5.3957 | I87: 0 | L87: 2.075195312 | O87: 0
F88: 86 | G88: 1.72 | H88: 13.4737 | I88: 0 | L88: 2.099609375 | O88: 0
F89: 87 | G89: 1.74 | H89: 18.3336 | I89: 0 | L89: 2.124023438 | O89: 0
F90: 88 | G90: 1.76 | H90: 27.9933 | I90: 0 | L90: 2.1484375 | O90: 0
F91: 89 | G91: 1.78 | H91: 33.1231 | I91: 0 | L91: 2.172851562 | O91: 0
F92: 90 | G92: 1.8 | H92: 31.5632 | I92: 0 | L92: 2.197265625 | O92: 0
F93: 91 | G93: 1.82 | H93: 40.0829 | I93: 0 | L93: 2.221679688 | O93: 0
F94: 92 | G94: 1.84 | H94: 8.5839 | I94: 0 | L94: 2.24609375 | O94: 0
F95: 93 | G95: 1.86 | H95: -23.5151 | I95: 0 | L95: 2.270507812 | O95: 0
F96: 94 | G96: 1.88 | H96: -38.9946 | I96: 0 | L96: 2.294921875 | O96: 0
F97: 95 | G97: 1.9 | H97: -26.215 | I97: 0 | L97: 2.319335938 | O97: 0
F98: 96 | G98: 1.92 | H98: 26.9434 | I98: 0 | L98: 2.34375 | O98: 0
F99: 97 | G99: 1.94 | H99: 21.0635 | I99: 0 | L99: 2.368164062 | O99: 0
F100: 98 | G100: 1.96 | H100: 9.3039 | I100: 0 | L100: 2.392578125 | O100: 0
F101: 99 | G101: 1.98 | H101: 15.4237 | I101: 0 | L101: 2.416992188 | O101: 0
F102: 100 | G102: 2 | H102: 13.7138 | I102: 0 | L102: 2.44140625 | O102: 0
F103: 101 | G103: 2.02 | H103: 25.3534 | I103: 0 | L103: 2.465820312 | O103: 0
F104: 102 | G104: 2.04 | H104: 7.324 | I104: 0 | L104: 2.490234375 | O104: 0
F105: 103 | G105: 2.06 | H105: -17.4252 | I105: 0 | L105: 2.514648438 | O105: 0
F106: 104 | G106: 2.08 | H106: -23.725 | I106: 0 | L106: 2.5390625 | O106: 0
F107: 105 | G107: 2.1 | H107: -20.9051 | I107: 0 | L107: 2.563476562 | O107: 0
F108: 106 | G108: 2.12 | H108: -12.6854 | I108: 0 | L108: 2.587890625 | O108: 0
F109: 107 | G109: 2.14 | H109: -28.5849 | I109: 0 | L109: 2.612304688 | O109: 0
F110: 108 | G110: 2.16 | H110: -28.5849 | I110: 0 | L110: 2.63671875 | O110: 0
F111: 109 | G111: 2.18 | H111: -15.6553 | I111: 0 | L111: 2.661132812 | O111: 0
F112: 110 | G112: 2.2 | H112: -15.1153 | I112: 0 | L112: 2.685546875 | O112: 0
F113: 111 | G113: 2.22 | H113: 6.5141 | I113: 0 | L113: 2.709960938 | O113: 0
F114: 112 | G114: 2.24 | H114: 22.4136 | I114: 0 | L114: 2.734375 | O114: 0
F115: 113 | G115: 2.26 | H115: 21.6636 | I115: 0 | L115: 2.758789062 | O115: 0
F116: 114 | G116: 2.28 | H116: 15.9638 | I116: 0 | L116: 2.783203125 | O116: 0
F117: 115 | G117: 2.3 | H117: -0.7757 | I117: 0 | L117: 2.807617188 | O117: 0
F118: 116 | G118: 2.32 | H118: -4.4656 | I118: 0 | L118: 2.83203125 | O118: 0
F119: 117 | G119: 2.34 | H119: 15.9638 | I119: 0 | L119: 2.856445312 | O119: 0
F120: 118 | G120: 2.36 | H120: 25.1135 | I120: 0 | L120: 2.880859375 | O120: 0
F121: 119 | G121: 2.38 | H121: 18.2437 | I121: 0 | L121: 2.905273438 | O121: 0
F122: 120 | G122: 2.4 | H122: 16.7438 | I122: 0 | L122: 2.9296875 | O122: 0
F123: 121 | G123: 2.42 | H123: 16.6238 | I123: 0 | L123: 2.954101562 | O123: 0
F124: 122 | G124: 2.44 | H124: -9.4754 | I124: 0 | L124: 2.978515625 | O124: 0
F125: 123 | G125: 2.46 | H125: -24.8049 | I125: 0 | L125: 3.002929688 | O125: 0
F126: 124 | G126: 2.48 | H126: -2.8456 | I126: 0 | L126: 3.02734375 | O126: 0
F127: 125 | G127: 2.5 | H127: 36.5432 | I127: 0 | L127: 3.051757812 | O127: 0
F128: 126 | G128: 2.52 | H128: 28.9234 | I128: 0 | L128: 3.076171875 | O128: 0
F129: 127 | G129: 2.54 | H129: -22.165 | I129: 0 | L129: 3.100585938 | O129: 0
F130: 128 | G130: =B$6*(F131-1) -> 2.56 | H130: -40.6744 | I130: 0 | L130: 3.125 | O130: 0
F131: 129 | G131: 2.58 | H131: -13.7352 | I131: 0 | L131: =(F131)/B$9/B$6 -> 3.149414062 | O131: =SQRT(M131^2+N131^2) -> 0 | P131: =ATAN(N131/M131) -> 
F132: 130 | G132: 2.6 | H132: 4.2342 | I132: 0 | L132: 3.173828125 | O132: 0
F133: 131 | G133: 2.62 | H133: -13.3752 | I133: 0 | L133: 3.198242188 | O133: 0
F134: 132 | G134: 2.64 | H134: -25.7349 | I134: 0 | L134: 3.22265625 | O134: 0
F135: 133 | G135: 2.66 | H135: 12.334 | I135: 0 | L135: 3.247070312 | O135: 0
F136: 134 | G136: 2.68 | H136: 42.3331 | I136: 0 | L136: 3.271484375 | O136: 0
F137: 135 | G137: 2.7 | H137: 0.0644 | I137: 0 | L137: 3.295898438 | O137: 0
F138: 136 | G138: 2.72 | H138: -60.3238 | I138: 0 | L138: 3.3203125 | O138: 0
F139: 137 | G139: 2.74 | H139: -70.2235 | I139: 0 | L139: 3.344726562 | O139: 0
F140: 138 | G140: 2.76 | H140: -13.8552 | I140: 0 | L140: 3.369140625 | O140: 0
F141: 139 | G141: 2.78 | H141: 24.2436 | I141: 0 | L141: 3.393554688 | O141: 0
F142: 140 | G142: 2.8 | H142: -2.2155 | I142: 0 | L142: 3.41796875 | O142: 0
F143: 141 | G143: 2.82 | H143: -8.6953 | I143: 0 | L143: 3.442382812 | O143: 0
F144: 142 | G144: 2.84 | H144: 22.6237 | I144: 0 | L144: 3.466796875 | O144: 0
F145: 143 | G145: 2.86 | H145: 45.363 | I145: 0 | L145: 3.491210938 | O145: 0
F146: 144 | G146: 2.88 | H146: 30.5435 | I146: 0 | L146: 3.515625 | O146: 0
F147: 145 | G147: 2.9 | H147: -15.8051 | I147: 0 | L147: 3.540039062 | O147: 0
F148: 146 | G148: 2.92 | H148: -21.1449 | I148: 0 | L148: 3.564453125 | O148: 0
F149: 147 | G149: 2.94 | H149: 45.153 | I149: 0 | L149: 3.588867188 | O149: 0
F150: 148 | G150: 2.96 | H150: 87.3918 | I150: 0 | L150: 3.61328125 | O150: 0
F151: 149 | G151: 2.98 | H151: 51.0029 | I151: 0 | L151: 3.637695312 | O151: 0
F152: 150 | G152: 3 | H152: 16.024 | I152: 0 | L152: 3.662109375 | O152: 0
F153: 151 | G153: 3.02 | H153: 43.5031 | I153: 0 | L153: 3.686523438 | O153: 0
F154: 152 | G154: 3.04 | H154: 92.6716 | I154: 0 | L154: 3.7109375 | O154: 0
F155: 153 | G155: 3.06 | H155: 83.6719 | I155: 0 | L155: 3.735351562 | O155: 0
F156: 154 | G156: 3.08 | H156: 15.724 | I156: 0 | L156: 3.759765625 | O156: 0
F157: 155 | G157: 3.1 | H157: -23.0048 | I157: 0 | L157: 3.784179688 | O157: 0
F158: 156 | G158: 3.12 | H158: -1.3755 | I158: 0 | L158: 3.80859375 | O158: 0
F159: 157 | G159: 3.14 | H159: 24.2737 | I159: 0 | L159: 3.833007812 | O159: 0
F160: 158 | G160: 3.16 | H160: 11.6441 | I160: 0 | L160: 3.857421875 | O160: 0
F161: 159 | G161: 3.18 | H161: -5.1554 | I161: 0 | L161: 3.881835938 | O161: 0
F162: 160 | G162: 3.2 | H162: 10.3842 | I162: 0 | L162: 3.90625 | O162: 0
F163: 161 | G163: 3.22 | H163: 52.7129 | I163: 0 | L163: 3.930664062 | O163: 0
F164: 162 | G164: 3.24 | H164: 110.8811 | I164: 0 | L164: 3.955078125 | O164: 0
F165: 163 | G165: 3.26 | H165: 170.7893 | I165: 0 | L165: 3.979492188 | O165: 0
F166: 164 | G166: 3.28 | H166: 208.6481 | I166: 0 | L166: 4.00390625 | O166: 0
F167: 165 | G167: 3.3 | H167: 232.2574 | I167: 0 | L167: 4.028320312 | O167: 0
F168: 166 | G168: 3.32 | H168: 263.9064 | I168: 0 | L168: 4.052734375 | O168: 0
F169: 167 | G169: 3.34 | H169: 295.1655 | I169: 0 | L169: 4.077148438 | O169: 0
F170: 168 | G170: 3.36 | H170: 318.4448 | I170: 0 | L170: 4.1015625 | O170: 0
F171: 169 | G171: 3.38 | H171: 345.9839 | I171: 0 | L171: 4.125976562 | O171: 0
F172: 170 | G172: 3.4 | H172: 332.2743 | I172: 0 | L172: 4.150390625 | O172: 0
F173: 171 | G173: 3.42 | H173: 223.0777 | I173: 0 | L173: 4.174804688 | O173: 0
F174: 172 | G174: 3.44 | H174: 82.802 | I174: 0 | L174: 4.19921875 | O174: 0
F175: 173 | G175: 3.46 | H175: -33.5044 | I175: 0 | L175: 4.223632812 | O175: 0
F176: 174 | G176: 3.48 | H176: -158.511 | I176: 0 | L176: 4.248046875 | O176: 0
F177: 175 | G177: 3.5 | H177: -328.275 | I177: 0 | L177: 4.272460938 | O177: 0
F178: 176 | G178: 3.52 | H178: -454.782 | I178: 0 | L178: 4.296875 | O178: 0
F179: 177 | G179: 3.54 | H179: -498.01 | I179: 0 | L179: 4.321289062 | O179: 0
F180: 178 | G180: 3.56 | H180: -505.18 | I180: 0 | L180: 4.345703125 | O180: 0
F181: 179 | G181: 3.58 | H181: -511.42 | I181: 0 | L181: 4.370117188 | O181: 0
F182: 180 | G182: 3.6 | H182: -535.839 | I182: 0 | L182: 4.39453125 | O182: 0
F183: 181 | G183: 3.62 | H183: -587.677 | I183: 0 | L183: 4.418945312 | O183: 0
F184: 182 | G184: 3.64 | H184: -630.576 | I184: 0 | L184: 4.443359375 | O184: 0
F185: 183 | G185: 3.66 | H185: -557.318 | I185: 0 | L185: 4.467773438 | O185: 0
F186: 184 | G186: 3.68 | H186: -351.075 | I186: 0 | L186: 4.4921875 | O186: 0
F187: 185 | G187: 3.7 | H187: -137.931 | I187: 0 | L187: 4.516601562 | O187: 0
F188: 186 | G188: 3.72 | H188: -3.5953 | I188: 0 | L188: 4.541015625 | O188: 0
F189: 187 | G189: 3.74 | H189: 65.3126 | I189: 0 | L189: 4.565429688 | O189: 0
F190: 188 | G190: 3.76 | H190: 133.6805 | I190: 0 | L190: 4.58984375 | O190: 0
F191: 189 | G191: 3.78 | H191: 176.9392 | I191: 0 | L191: 4.614257812 | O191: 0
F192: 190 | G192: 3.8 | H192: 177.7192 | I192: 0 | L192: 4.638671875 | O192: 0
F193: 191 | G193: 3.82 | H193: 176.6092 | I193: 0 | L193: 4.663085938 | O193: 0
F194: 192 | G194: =B$6*(F195-1) -> 3.84 | H194: 171.5994 | I194: 0 | L194: 4.6875 | O194: 0
F195: 193 | G195: 3.86 | H195: 145.9202 | I195: 0 | L195: =(F195)/B$9/B$6 -> 4.711914062 | O195: =SQRT(M195^2+N195^2) -> 0 | P195: =ATAN(N195/M195) -> 
F196: 194 | G196: 3.88 | H196: 96.7217 | I196: 0 | L196: 4.736328125 | O196: 0
F197: 195 | G197: 3.9 | H197: 31.2637 | I197: 0 | L197: 4.760742188 | O197: 0
F198: 196 | G198: 3.92 | H198: -9.925 | I198: 0 | L198: 4.78515625 | O198: 0
F199: 197 | G199: 3.94 | H199: 14.4642 | I199: 0 | L199: 4.809570312 | O199: 0
F200: 198 | G200: 3.96 | H200: 61.8028 | I200: 0 | L200: 4.833984375 | O200: 0
... 1849 more rows

Sheet INVERSE
A1: MASS M | B1: =FOURIER!B1 -> 1 | C1: t | F1: FOURIER | G1: k | H1: FREQ. (Hz) | I1: C(Rk) | J1: C(Ik) | L1: INVERSE | M1: X(Rk) | N1: X(Ik)
A2: STIFFNESS K | B2: =FOURIER!B2 -> 5 | C2: kN/m | F2: TRANSFORM | G2: 0 | H2: =(G2)/B$9/B$6 -> 0 | I2: =FOURIER!M2 -> 0 | J2: =FOURIER!N2 -> 0 | L2: TRANSFORM
A3: DAMPING C | B3: =FOURIER!B3 -> 0.2 | C3: kNsec/m | G3: 1 | H3: 0.0244140625 | I3: =FOURIER!M3 -> 0 | J3: =FOURIER!N3 -> 0
A4: ANGULAR FREQUENCY ω0 | B4: =FOURIER!B4 -> 2.236067977 | C4: 1/sec | G4: 2 | H4: 0.048828125 | I4: =FOURIER!M4 -> 0 | J4: =FOURIER!N4 -> 0
A5: FREQUENCY f0 | B5: =FOURIER!B5 -> 0.3558812717 | C5: 1/sec | G5: 3 | H5: 0.0732421875 | I5: =FOURIER!M5 -> 0 | J5: =FOURIER!N5 -> 0
A6: TIME INTERVAL Δt | B6: =FOURIER!B6 -> 0.02 | C6: sec | G6: 4 | H6: 0.09765625 | I6: =FOURIER!M6 -> 0 | J6: =FOURIER!N6 -> 0
A7: DURATION T | B7: =FOURIER!B7 -> 40.96 | C7: sec | G7: 5 | H7: 0.1220703125 | I7: =FOURIER!M7 -> 0 | J7: =FOURIER!N7 -> 0
A8: DAMPING COEFFICIENT h | B8: =FOURIER!B8 -> 0.04472135955 | G8: 6 | H8: 0.146484375 | I8: =FOURIER!M8 -> 0 | J8: =FOURIER!N8 -> 0
A9: NUMBER OF DATA N | B9: =FOURIER!B9 -> 2048 | G9: 7 | H9: 0.1708984375 | I9: =FOURIER!M9 -> 0 | J9: =FOURIER!N9 -> 0
A10: NATURALPERIOD T0 | B10: =FOURIER!B10 -> 2.809925892 | C10: sec | G10: 8 | H10: 0.1953125 | I10: =FOURIER!M10 -> 0 | J10: =FOURIER!N10 -> 0
G11: 9 | H11: 0.2197265625 | I11: =FOURIER!M11 -> 0 | J11: =FOURIER!N11 -> 0
A12: INPUT FOURIER REAL | B12: I | G12: 10 | H12: 0.244140625 | I12: =FOURIER!M12 -> 0 | J12: =FOURIER!N12 -> 0
A13: INPUT FOURIER IMAG | B13: J | G13: 11 | H13: 0.2685546875 | I13: =FOURIER!M13 -> 0 | J13: =FOURIER!N13 -> 0
A14: OUTPUT INVERSE REAL | B14: M | G14: 12 | H14: 0.29296875 | I14: =FOURIER!M14 -> 0 | J14: =FOURIER!N14 -> 0
A15: OUTPUT INVERSE IMAG | B15: N | G15: 13 | H15: 0.3173828125 | I15: =FOURIER!M15 -> 0 | J15: =FOURIER!N15 -> 0
G16: 14 | H16: 0.341796875 | I16: =FOURIER!M16 -> 0 | J16: =FOURIER!N16 -> 0
A17: ※オレンジで塗られた箇所はVBAで計算 | G17: 15 | H17: 0.3662109375 | I17: =FOURIER!M17 -> 0 | J17: =FOURIER!N17 -> 0
G18: 16 | H18: 0.390625 | I18: =FOURIER!M18 -> 0 | J18: =FOURIER!N18 -> 0
A19: ※無断複製、転載を禁ず | G19: 17 | H19: 0.4150390625 | I19: =FOURIER!M19 -> 0 | J19: =FOURIER!N19 -> 0
A20: ©Tokyo Tech Takeuchi Lab. | G20: 18 | H20: 0.439453125 | I20: =FOURIER!M20 -> 0 | J20: =FOURIER!N20 -> 0
A21: All rights reserved | G21: 19 | H21: 0.4638671875 | I21: =FOURIER!M21 -> 0 | J21: =FOURIER!N21 -> 0
G22: 20 | H22: 0.48828125 | I22: =FOURIER!M22 -> 0 | J22: =FOURIER!N22 -> 0
G23: 21 | H23: 0.5126953125 | I23: =FOURIER!M23 -> 0 | J23: =FOURIER!N23 -> 0
G24: 22 | H24: 0.537109375 | I24: =FOURIER!M24 -> 0 | J24: =FOURIER!N24 -> 0
G25: 23 | H25: 0.5615234375 | I25: =FOURIER!M25 -> 0 | J25: =FOURIER!N25 -> 0
G26: 24 | H26: 0.5859375 | I26: =FOURIER!M26 -> 0 | J26: =FOURIER!N26 -> 0
G27: 25 | H27: 0.6103515625 | I27: =FOURIER!M27 -> 0 | J27: =FOURIER!N27 -> 0
G28: 26 | H28: 0.634765625 | I28: =FOURIER!M28 -> 0 | J28: =FOURIER!N28 -> 0
G29: 27 | H29: 0.6591796875 | I29: =FOURIER!M29 -> 0 | J29: =FOURIER!N29 -> 0
G30: 28 | H30: 0.68359375 | I30: =FOURIER!M30 -> 0 | J30: =FOURIER!N30 -> 0
G31: 29 | H31: 0.7080078125 | I31: =FOURIER!M31 -> 0 | J31: =FOURIER!N31 -> 0
G32: 30 | H32: 0.732421875 | I32: =FOURIER!M32 -> 0 | J32: =FOURIER!N32 -> 0
G33: 31 | H33: 0.7568359375 | I33: =FOURIER!M33 -> 0 | J33: =FOURIER!N33 -> 0
G34: 32 | H34: 0.78125 | I34: =FOURIER!M34 -> 0 | J34: =FOURIER!N34 -> 0
G35: 33 | H35: 0.8056640625 | I35: =FOURIER!M35 -> 0 | J35: =FOURIER!N35 -> 0
G36: 34 | H36: 0.830078125 | I36: =FOURIER!M36 -> 0 | J36: =FOURIER!N36 -> 0
G37: 35 | H37: 0.8544921875 | I37: =FOURIER!M37 -> 0 | J37: =FOURIER!N37 -> 0
G38: 36 | H38: 0.87890625 | I38: =FOURIER!M38 -> 0 | J38: =FOURIER!N38 -> 0
G39: 37 | H39: 0.9033203125 | I39: =FOURIER!M39 -> 0 | J39: =FOURIER!N39 -> 0
G40: 38 | H40: 0.927734375 | I40: =FOURIER!M40 -> 0 | J40: =FOURIER!N40 -> 0
G41: 39 | H41: 0.9521484375 | I41: =FOURIER!M41 -> 0 | J41: =FOURIER!N41 -> 0
G42: 40 | H42: 0.9765625 | I42: =FOURIER!M42 -> 0 | J42: =FOURIER!N42 -> 0
G43: 41 | H43: 1.000976562 | I43: =FOURIER!M43 -> 0 | J43: =FOURIER!N43 -> 0
G44: 42 | H44: 1.025390625 | I44: =FOURIER!M44 -> 0 | J44: =FOURIER!N44 -> 0
G45: 43 | H45: 1.049804688 | I45: =FOURIER!M45 -> 0 | J45: =FOURIER!N45 -> 0
G46: 44 | H46: 1.07421875 | I46: =FOURIER!M46 -> 0 | J46: =FOURIER!N46 -> 0
G47: 45 | H47: 1.098632812 | I47: =FOURIER!M47 -> 0 | J47: =FOURIER!N47 -> 0
G48: 46 | H48: 1.123046875 | I48: =FOURIER!M48 -> 0 | J48: =FOURIER!N48 -> 0
G49: 47 | H49: 1.147460938 | I49: =FOURIER!M49 -> 0 | J49: =FOURIER!N49 -> 0
G50: 48 | H50: 1.171875 | I50: =FOURIER!M50 -> 0 | J50: =FOURIER!N50 -> 0
G51: 49 | H51: 1.196289062 | I51: =FOURIER!M51 -> 0 | J51: =FOURIER!N51 -> 0
G52: 50 | H52: 1.220703125 | I52: =FOURIER!M52 -> 0 | J52: =FOURIER!N52 -> 0
G53: 51 | H53: 1.245117188 | I53: =FOURIER!M53 -> 0 | J53: =FOURIER!N53 -> 0
G54: 52 | H54: 1.26953125 | I54: =FOURIER!M54 -> 0 | J54: =FOURIER!N54 -> 0
G55: 53 | H55: 1.293945312 | I55: =FOURIER!M55 -> 0 | J55: =FOURIER!N55 -> 0
G56: 54 | H56: 1.318359375 | I56: =FOURIER!M56 -> 0 | J56: =FOURIER!N56 -> 0
G57: 55 | H57: 1.342773438 | I57: =FOURIER!M57 -> 0 | J57: =FOURIER!N57 -> 0
G58: 56 | H58: 1.3671875 | I58: =FOURIER!M58 -> 0 | J58: =FOURIER!N58 -> 0
G59: 57 | H59: 1.391601562 | I59: =FOURIER!M59 -> 0 | J59: =FOURIER!N59 -> 0
G60: 58 | H60: 1.416015625 | I60: =FOURIER!M60 -> 0 | J60: =FOURIER!N60 -> 0
G61: 59 | H61: 1.440429688 | I61: =FOURIER!M61 -> 0 | J61: =FOURIER!N61 -> 0
G62: 60 | H62: 1.46484375 | I62: =FOURIER!M62 -> 0 | J62: =FOURIER!N62 -> 0
G63: 61 | H63: 1.489257812 | I63: =FOURIER!M63 -> 0 | J63: =FOURIER!N63 -> 0
G64: 62 | H64: 1.513671875 | I64: =FOURIER!M64 -> 0 | J64: =FOURIER!N64 -> 0
G65: 63 | H65: 1.538085938 | I65: =FOURIER!M65 -> 0 | J65: =FOURIER!N65 -> 0
G66: 64 | H66: =(G66)/B$9/B$6 -> 1.5625 | I66: =FOURIER!M66 -> 0 | J66: =FOURIER!N66 -> 0
G67: 65 | H67: 1.586914062 | I67: =FOURIER!M67 -> 0 | J67: =FOURIER!N67 -> 0
G68: 66 | H68: 1.611328125 | I68: =FOURIER!M68 -> 0 | J68: =FOURIER!N68 -> 0
G69: 67 | H69: 1.635742188 | I69: =FOURIER!M69 -> 0 | J69: =FOURIER!N69 -> 0
G70: 68 | H70: 1.66015625 | I70: =FOURIER!M70 -> 0 | J70: =FOURIER!N70 -> 0
G71: 69 | H71: 1.684570312 | I71: =FOURIER!M71 -> 0 | J71: =FOURIER!N71 -> 0
G72: 70 | H72: 1.708984375 | I72: =FOURIER!M72 -> 0 | J72: =FOURIER!N72 -> 0
G73: 71 | H73: 1.733398438 | I73: =FOURIER!M73 -> 0 | J73: =FOURIER!N73 -> 0
G74: 72 | H74: 1.7578125 | I74: =FOURIER!M74 -> 0 | J74: =FOURIER!N74 -> 0
G75: 73 | H75: 1.782226562 | I75: =FOURIER!M75 -> 0 | J75: =FOURIER!N75 -> 0
G76: 74 | H76: 1.806640625 | I76: =FOURIER!M76 -> 0 | J76: =FOURIER!N76 -> 0
G77: 75 | H77: 1.831054688 | I77: =FOURIER!M77 -> 0 | J77: =FOURIER!N77 -> 0
G78: 76 | H78: 1.85546875 | I78: =FOURIER!M78 -> 0 | J78: =FOURIER!N78 -> 0
G79: 77 | H79: 1.879882812 | I79: =FOURIER!M79 -> 0 | J79: =FOURIER!N79 -> 0
G80: 78 | H80: 1.904296875 | I80: =FOURIER!M80 -> 0 | J80: =FOURIER!N80 -> 0
G81: 79 | H81: 1.928710938 | I81: =FOURIER!M81 -> 0 | J81: =FOURIER!N81 -> 0
G82: 80 | H82: 1.953125 | I82: =FOURIER!M82 -> 0 | J82: =FOURIER!N82 -> 0
G83: 81 | H83: 1.977539062 | I83: =FOURIER!M83 -> 0 | J83: =FOURIER!N83 -> 0
G84: 82 | H84: 2.001953125 | I84: =FOURIER!M84 -> 0 | J84: =FOURIER!N84 -> 0
G85: 83 | H85: 2.026367188 | I85: =FOURIER!M85 -> 0 | J85: =FOURIER!N85 -> 0
G86: 84 | H86: 2.05078125 | I86: =FOURIER!M86 -> 0 | J86: =FOURIER!N86 -> 0
G87: 85 | H87: 2.075195312 | I87: =FOURIER!M87 -> 0 | J87: =FOURIER!N87 -> 0
G88: 86 | H88: 2.099609375 | I88: =FOURIER!M88 -> 0 | J88: =FOURIER!N88 -> 0
G89: 87 | H89: 2.124023438 | I89: =FOURIER!M89 -> 0 | J89: =FOURIER!N89 -> 0
G90: 88 | H90: 2.1484375 | I90: =FOURIER!M90 -> 0 | J90: =FOURIER!N90 -> 0
G91: 89 | H91: 2.172851562 | I91: =FOURIER!M91 -> 0 | J91: =FOURIER!N91 -> 0
G92: 90 | H92: 2.197265625 | I92: =FOURIER!M92 -> 0 | J92: =FOURIER!N92 -> 0
G93: 91 | H93: 2.221679688 | I93: =FOURIER!M93 -> 0 | J93: =FOURIER!N93 -> 0
G94: 92 | H94: 2.24609375 | I94: =FOURIER!M94 -> 0 | J94: =FOURIER!N94 -> 0
G95: 93 | H95: 2.270507812 | I95: =FOURIER!M95 -> 0 | J95: =FOURIER!N95 -> 0
G96: 94 | H96: 2.294921875 | I96: =FOURIER!M96 -> 0 | J96: =FOURIER!N96 -> 0
G97: 95 | H97: 2.319335938 | I97: =FOURIER!M97 -> 0 | J97: =FOURIER!N97 -> 0
G98: 96 | H98: 2.34375 | I98: =FOURIER!M98 -> 0 | J98: =FOURIER!N98 -> 0
G99: 97 | H99: 2.368164062 | I99: =FOURIER!M99 -> 0 | J99: =FOURIER!N99 -> 0
G100: 98 | H100: 2.392578125 | I100: =FOURIER!M100 -> 0 | J100: =FOURIER!N100 -> 0
G101: 99 | H101: 2.416992188 | I101: =FOURIER!M101 -> 0 | J101: =FOURIER!N101 -> 0
G102: 100 | H102: 2.44140625 | I102: =FOURIER!M102 -> 0 | J102: =FOURIER!N102 -> 0
G103: 101 | H103: 2.465820312 | I103: =FOURIER!M103 -> 0 | J103: =FOURIER!N103 -> 0
G104: 102 | H104: 2.490234375 | I104: =FOURIER!M104 -> 0 | J104: =FOURIER!N104 -> 0
G105: 103 | H105: 2.514648438 | I105: =FOURIER!M105 -> 0 | J105: =FOURIER!N105 -> 0
G106: 104 | H106: 2.5390625 | I106: =FOURIER!M106 -> 0 | J106: =FOURIER!N106 -> 0
G107: 105 | H107: 2.563476562 | I107: =FOURIER!M107 -> 0 | J107: =FOURIER!N107 -> 0
G108: 106 | H108: 2.587890625 | I108: =FOURIER!M108 -> 0 | J108: =FOURIER!N108 -> 0
G109: 107 | H109: 2.612304688 | I109: =FOURIER!M109 -> 0 | J109: =FOURIER!N109 -> 0
G110: 108 | H110: 2.63671875 | I110: =FOURIER!M110 -> 0 | J110: =FOURIER!N110 -> 0
G111: 109 | H111: 2.661132812 | I111: =FOURIER!M111 -> 0 | J111: =FOURIER!N111 -> 0
G112: 110 | H112: 2.685546875 | I112: =FOURIER!M112 -> 0 | J112: =FOURIER!N112 -> 0
G113: 111 | H113: 2.709960938 | I113: =FOURIER!M113 -> 0 | J113: =FOURIER!N113 -> 0
G114: 112 | H114: 2.734375 | I114: =FOURIER!M114 -> 0 | J114: =FOURIER!N114 -> 0
G115: 113 | H115: 2.758789062 | I115: =FOURIER!M115 -> 0 | J115: =FOURIER!N115 -> 0
G116: 114 | H116: 2.783203125 | I116: =FOURIER!M116 -> 0 | J116: =FOURIER!N116 -> 0
G117: 115 | H117: 2.807617188 | I117: =FOURIER!M117 -> 0 | J117: =FOURIER!N117 -> 0
G118: 116 | H118: 2.83203125 | I118: =FOURIER!M118 -> 0 | J118: =FOURIER!N118 -> 0
G119: 117 | H119: 2.856445312 | I119: =FOURIER!M119 -> 0 | J119: =FOURIER!N119 -> 0
G120: 118 | H120: 2.880859375 | I120: =FOURIER!M120 -> 0 | J120: =FOURIER!N120 -> 0
G121: 119 | H121: 2.905273438 | I121: =FOURIER!M121 -> 0 | J121: =FOURIER!N121 -> 0
G122: 120 | H122: 2.9296875 | I122: =FOURIER!M122 -> 0 | J122: =FOURIER!N122 -> 0
G123: 121 | H123: 2.954101562 | I123: =FOURIER!M123 -> 0 | J123: =FOURIER!N123 -> 0
G124: 122 | H124: 2.978515625 | I124: =FOURIER!M124 -> 0 | J124: =FOURIER!N124 -> 0
G125: 123 | H125: 3.002929688 | I125: =FOURIER!M125 -> 0 | J125: =FOURIER!N125 -> 0
G126: 124 | H126: 3.02734375 | I126: =FOURIER!M126 -> 0 | J126: =FOURIER!N126 -> 0
G127: 125 | H127: 3.051757812 | I127: =FOURIER!M127 -> 0 | J127: =FOURIER!N127 -> 0
G128: 126 | H128: 3.076171875 | I128: =FOURIER!M128 -> 0 | J128: =FOURIER!N128 -> 0
G129: 127 | H129: 3.100585938 | I129: =FOURIER!M129 -> 0 | J129: =FOURIER!N129 -> 0
G130: 128 | H130: =(G130)/B$9/B$6 -> 3.125 | I130: =FOURIER!M130 -> 0 | J130: =FOURIER!N130 -> 0
G131: 129 | H131: 3.149414062 | I131: =FOURIER!M131 -> 0 | J131: =FOURIER!N131 -> 0
G132: 130 | H132: 3.173828125 | I132: =FOURIER!M132 -> 0 | J132: =FOURIER!N132 -> 0
G133: 131 | H133: 3.198242188 | I133: =FOURIER!M133 -> 0 | J133: =FOURIER!N133 -> 0
G134: 132 | H134: 3.22265625 | I134: =FOURIER!M134 -> 0 | J134: =FOURIER!N134 -> 0
G135: 133 | H135: 3.247070312 | I135: =FOURIER!M135 -> 0 | J135: =FOURIER!N135 -> 0
G136: 134 | H136: 3.271484375 | I136: =FOURIER!M136 -> 0 | J136: =FOURIER!N136 -> 0
G137: 135 | H137: 3.295898438 | I137: =FOURIER!M137 -> 0 | J137: =FOURIER!N137 -> 0
G138: 136 | H138: 3.3203125 | I138: =FOURIER!M138 -> 0 | J138: =FOURIER!N138 -> 0
G139: 137 | H139: 3.344726562 | I139: =FOURIER!M139 -> 0 | J139: =FOURIER!N139 -> 0
G140: 138 | H140: 3.369140625 | I140: =FOURIER!M140 -> 0 | J140: =FOURIER!N140 -> 0
G141: 139 | H141: 3.393554688 | I141: =FOURIER!M141 -> 0 | J141: =FOURIER!N141 -> 0
G142: 140 | H142: 3.41796875 | I142: =FOURIER!M142 -> 0 | J142: =FOURIER!N142 -> 0
G143: 141 | H143: 3.442382812 | I143: =FOURIER!M143 -> 0 | J143: =FOURIER!N143 -> 0
G144: 142 | H144: 3.466796875 | I144: =FOURIER!M144 -> 0 | J144: =FOURIER!N144 -> 0
G145: 143 | H145: 3.491210938 | I145: =FOURIER!M145 -> 0 | J145: =FOURIER!N145 -> 0
G146: 144 | H146: 3.515625 | I146: =FOURIER!M146 -> 0 | J146: =FOURIER!N146 -> 0
G147: 145 | H147: 3.540039062 | I147: =FOURIER!M147 -> 0 | J147: =FOURIER!N147 -> 0
G148: 146 | H148: 3.564453125 | I148: =FOURIER!M148 -> 0 | J148: =FOURIER!N148 -> 0
G149: 147 | H149: 3.588867188 | I149: =FOURIER!M149 -> 0 | J149: =FOURIER!N149 -> 0
G150: 148 | H150: 3.61328125 | I150: =FOURIER!M150 -> 0 | J150: =FOURIER!N150 -> 0
G151: 149 | H151: 3.637695312 | I151: =FOURIER!M151 -> 0 | J151: =FOURIER!N151 -> 0
G152: 150 | H152: 3.662109375 | I152: =FOURIER!M152 -> 0 | J152: =FOURIER!N152 -> 0
G153: 151 | H153: 3.686523438 | I153: =FOURIER!M153 -> 0 | J153: =FOURIER!N153 -> 0
G154: 152 | H154: 3.7109375 | I154: =FOURIER!M154 -> 0 | J154: =FOURIER!N154 -> 0
G155: 153 | H155: 3.735351562 | I155: =FOURIER!M155 -> 0 | J155: =FOURIER!N155 -> 0
G156: 154 | H156: 3.759765625 | I156: =FOURIER!M156 -> 0 | J156: =FOURIER!N156 -> 0
G157: 155 | H157: 3.784179688 | I157: =FOURIER!M157 -> 0 | J157: =FOURIER!N157 -> 0
G158: 156 | H158: 3.80859375 | I158: =FOURIER!M158 -> 0 | J158: =FOURIER!N158 -> 0
G159: 157 | H159: 3.833007812 | I159: =FOURIER!M159 -> 0 | J159: =FOURIER!N159 -> 0
G160: 158 | H160: 3.857421875 | I160: =FOURIER!M160 -> 0 | J160: =FOURIER!N160 -> 0
G161: 159 | H161: 3.881835938 | I161: =FOURIER!M161 -> 0 | J161: =FOURIER!N161 -> 0
G162: 160 | H162: 3.90625 | I162: =FOURIER!M162 -> 0 | J162: =FOURIER!N162 -> 0
G163: 161 | H163: 3.930664062 | I163: =FOURIER!M163 -> 0 | J163: =FOURIER!N163 -> 0
G164: 162 | H164: 3.955078125 | I164: =FOURIER!M164 -> 0 | J164: =FOURIER!N164 -> 0
G165: 163 | H165: 3.979492188 | I165: =FOURIER!M165 -> 0 | J165: =FOURIER!N165 -> 0
G166: 164 | H166: 4.00390625 | I166: =FOURIER!M166 -> 0 | J166: =FOURIER!N166 -> 0
G167: 165 | H167: 4.028320312 | I167: =FOURIER!M167 -> 0 | J167: =FOURIER!N167 -> 0
G168: 166 | H168: 4.052734375 | I168: =FOURIER!M168 -> 0 | J168: =FOURIER!N168 -> 0
G169: 167 | H169: 4.077148438 | I169: =FOURIER!M169 -> 0 | J169: =FOURIER!N169 -> 0
G170: 168 | H170: 4.1015625 | I170: =FOURIER!M170 -> 0 | J170: =FOURIER!N170 -> 0
G171: 169 | H171: 4.125976562 | I171: =FOURIER!M171 -> 0 | J171: =FOURIER!N171 -> 0
G172: 170 | H172: 4.150390625 | I172: =FOURIER!M172 -> 0 | J172: =FOURIER!N172 -> 0
G173: 171 | H173: 4.174804688 | I173: =FOURIER!M173 -> 0 | J173: =FOURIER!N173 -> 0
G174: 172 | H174: 4.19921875 | I174: =FOURIER!M174 -> 0 | J174: =FOURIER!N174 -> 0
G175: 173 | H175: 4.223632812 | I175: =FOURIER!M175 -> 0 | J175: =FOURIER!N175 -> 0
G176: 174 | H176: 4.248046875 | I176: =FOURIER!M176 -> 0 | J176: =FOURIER!N176 -> 0
G177: 175 | H177: 4.272460938 | I177: =FOURIER!M177 -> 0 | J177: =FOURIER!N177 -> 0
G178: 176 | H178: 4.296875 | I178: =FOURIER!M178 -> 0 | J178: =FOURIER!N178 -> 0
G179: 177 | H179: 4.321289062 | I179: =FOURIER!M179 -> 0 | J179: =FOURIER!N179 -> 0
G180: 178 | H180: 4.345703125 | I180: =FOURIER!M180 -> 0 | J180: =FOURIER!N180 -> 0
G181: 179 | H181: 4.370117188 | I181: =FOURIER!M181 -> 0 | J181: =FOURIER!N181 -> 0
G182: 180 | H182: 4.39453125 | I182: =FOURIER!M182 -> 0 | J182: =FOURIER!N182 -> 0
G183: 181 | H183: 4.418945312 | I183: =FOURIER!M183 -> 0 | J183: =FOURIER!N183 -> 0
G184: 182 | H184: 4.443359375 | I184: =FOURIER!M184 -> 0 | J184: =FOURIER!N184 -> 0
G185: 183 | H185: 4.467773438 | I185: =FOURIER!M185 -> 0 | J185: =FOURIER!N185 -> 0
G186: 184 | H186: 4.4921875 | I186: =FOURIER!M186 -> 0 | J186: =FOURIER!N186 -> 0
G187: 185 | H187: 4.516601562 | I187: =FOURIER!M187 -> 0 | J187: =FOURIER!N187 -> 0
G188: 186 | H188: 4.541015625 | I188: =FOURIER!M188 -> 0 | J188: =FOURIER!N188 -> 0
G189: 187 | H189: 4.565429688 | I189: =FOURIER!M189 -> 0 | J189: =FOURIER!N189 -> 0
G190: 188 | H190: 4.58984375 | I190: =FOURIER!M190 -> 0 | J190: =FOURIER!N190 -> 0
G191: 189 | H191: 4.614257812 | I191: =FOURIER!M191 -> 0 | J191: =FOURIER!N191 -> 0
G192: 190 | H192: 4.638671875 | I192: =FOURIER!M192 -> 0 | J192: =FOURIER!N192 -> 0
G193: 191 | H193: 4.663085938 | I193: =FOURIER!M193 -> 0 | J193: =FOURIER!N193 -> 0
G194: 192 | H194: =(G194)/B$9/B$6 -> 4.6875 | I194: =FOURIER!M194 -> 0 | J194: =FOURIER!N194 -> 0
G195: 193 | H195: 4.711914062 | I195: =FOURIER!M195 -> 0 | J195: =FOURIER!N195 -> 0
G196: 194 | H196: 4.736328125 | I196: =FOURIER!M196 -> 0 | J196: =FOURIER!N196 -> 0
G197: 195 | H197: 4.760742188 | I197: =FOURIER!M197 -> 0 | J197: =FOURIER!N197 -> 0
G198: 196 | H198: 4.78515625 | I198: =FOURIER!M198 -> 0 | J198: =FOURIER!N198 -> 0
G199: 197 | H199: 4.809570312 | I199: =FOURIER!M199 -> 0 | J199: =FOURIER!N199 -> 0
G200: 198 | H200: 4.833984375 | I200: =FOURIER!M200 -> 0 | J200: =FOURIER!N200 -> 0
... 1849 more rows

Sheet RESPONSE
A1: MASS M | B1: =FOURIER!B1 -> 1 | C1: t | E1: FOURIER | F1: k | G1: TIME (Sec) | H1: DDY,Real | I1: FREQ. (Hz) | J1: C(Rk) | K1: C(Ik) | M1: FREQUENCY | N1: ωk (Hz) | O1: Hω(Rk) | P1: Hω(Ik) | Q1: MAGNITUDE(H) | R1: PHASE(H) | S1: C・H(Rk) | T1: C・H(Ik) | U1: C・H-MRR(Rk) | V1: C・H-MRR(Ik) | X1: RESPONSE | Y1: DISP (cm, Rk) | Z1: DISP (cm, Ik) | AA1: VEL (cm/sec) | AB1: ABS. ACC (cm/sec2) | AO1: FORTRAN | AP1: TIME (Sec) | AQ1: DISP (cm, Rk) | AR1: RESP (cm, Ik) | AS1: VEL (cm/sec) | AT1: ABS. ACC (cm/sec2)
A2: STIFFNESS K | B2: =FOURIER!B2 -> 5 | C2: kN/m | E2: TRANSFORM | F2: 0 | G2: =B$6*F2 -> 0 | H2: 0 | I2: =F2/B$9/B$6 -> 0 | J2: =FOURIER!M2 -> 0 | K2: =FOURIER!N2 -> 0 | M2: FUNCTION | N2: =2*PI()/B$9/B$6*F2 -> 0 | S2: =J2*O2-K2*P2 -> 0 | T2: =J2*P2+K2*O2 -> 0 | AA2: =0 -> 0 | AB2: =H2 -> 0 | AO2: RESPONSE | AP2: =G2 -> 0 | AQ2: -0.363 | AR2: 0 | AS2: =0 -> 0 | AT2: =S2 -> 0
A3: DAMPING C | B3: =FOURIER!B3 -> 0.2 | C3: kNsec/m | F3: 1 | G3: =B$6*F3 -> 0.02 | H3: 0.7237 | I3: =F3/B$9/B$6 -> 0.0244140625 | J3: =FOURIER!M3 -> 0 | K3: =FOURIER!N3 -> 0 | N3: 0.1533980788 | S3: 0 | T3: 0 | AA3: =(Y3-Y2)/B$6 -> 0 | AB3: =(AA3-AA2)/B$6+H3 -> 0.7237 | AO3: *APPENDIX | AP3: 0.02 | AQ3: -0.427 | AR3: 0 | AS3: =(AQ3-AQ2)/O$6 ->  | AT3: =(AS3-AS2)/O$6+S3 -> 
A4: ANGULAR FREQUENCY ω0 | B4: =SQRT(B2/B1) -> 2.236067977 | C4: 1/sec | F4: 2 | G4: 0.04 | H4: 0.6937 | I4: 0.048828125 | J4: =FOURIER!M4 -> 0 | K4: =FOURIER!N4 -> 0 | N4: 0.3067961576 | S4: 0 | T4: 0 | AA4: 0 | AB4: 0.6937 | AP4: 0.04 | AQ4: -0.49 | AR4: 0
A5: FREQUENCY f0 | B5: =B4/2/PI() -> 0.3558812717 | C5: 1/sec | F5: 3 | G5: 0.06 | H5: -0.3562 | I5: 0.0732421875 | J5: =FOURIER!M5 -> 0 | K5: =FOURIER!N5 -> 0 | N5: 0.4601942364 | S5: 0 | T5: 0 | AA5: 0 | AB5: -0.3562 | AP5: 0.06 | AQ5: -0.551 | AR5: 0
A6: TIME INTERVAL Δt | B6: 0.02 | C6: sec | F6: 4 | G6: 0.08 | H6: -2.0062 | I6: 0.09765625 | J6: =FOURIER!M6 -> 0 | K6: =FOURIER!N6 -> 0 | N6: 0.6135923152 | S6: 0 | T6: 0 | AA6: 0 | AB6: -2.0062 | AP6: 0.08 | AQ6: -0.611 | AR6: 0
A7: DURATION T | B7: =B6*2048 -> 40.96 | C7: sec | F7: 5 | G7: 0.1 | H7: -2.9062 | I7: 0.1220703125 | J7: =FOURIER!M7 -> 0 | K7: =FOURIER!N7 -> 0 | N7: 0.7669903939 | S7: 0 | T7: 0 | AA7: 0 | AB7: -2.9062 | AP7: 0.1 | AQ7: -0.671 | AR7: 0
A8: DAMPING COEFFICIENT h | B8: =B3/2/SQRT(B1*B2) -> 0.04472135955 | F8: 6 | G8: 0.12 | H8: -1.7662 | I8: 0.146484375 | J8: =FOURIER!M8 -> 0 | K8: =FOURIER!N8 -> 0 | N8: 0.9203884727 | S8: 0 | T8: 0 | AA8: 0 | AB8: -1.7662 | AP8: 0.12 | AQ8: -0.729 | AR8: 0
A9: NUMBER OF DATA N | B9: 2048 | F9: 7 | G9: 0.14 | H9: -0.3562 | I9: 0.1708984375 | J9: =FOURIER!M9 -> 0 | K9: =FOURIER!N9 -> 0 | N9: 1.073786552 | S9: 0 | T9: 0 | AA9: 0 | AB9: -0.3562 | AP9: 0.14 | AQ9: -0.787 | AR9: 0
A10: NATURALPERIOD T0 | B10: =FOURIER!B10 -> 2.809925892 | F10: 8 | G10: 0.16 | H10: -0.9262 | I10: 0.1953125 | J10: =FOURIER!M10 -> 0 | K10: =FOURIER!N10 -> 0 | N10: 1.22718463 | S10: 0 | T10: 0 | AA10: 0 | AB10: -0.9262 | AP10: 0.16 | AQ10: -0.844 | AR10: 0
F11: 9 | G11: 0.18 | H11: -0.4462 | I11: 0.2197265625 | J11: =FOURIER!M11 -> 0 | K11: =FOURIER!N11 -> 0 | N11: 1.380582709 | S11: 0 | T11: 0 | AA11: 0 | AB11: -0.4462 | AP11: 0.18 | AQ11: -0.898 | AR11: 0
A12: INPUT CONVOLUTION REAL | B12: U | F12: 10 | G12: 0.2 | H12: 3.2437 | I12: 0.244140625 | J12: =FOURIER!M12 -> 0 | K12: =FOURIER!N12 -> 0 | N12: 1.533980788 | S12: 0 | T12: 0 | AA12: 0 | AB12: 3.2437 | AP12: 0.2 | AQ12: -0.951 | AR12: 0
A13: INPUT CONVOLUTION IMAG | B13: V | F13: 11 | G13: 0.22 | H13: 3.5137 | I13: 0.2685546875 | J13: =FOURIER!M13 -> 0 | K13: =FOURIER!N13 -> 0 | N13: 1.687378867 | S13: 0 | T13: 0 | AA13: 0 | AB13: 3.5137 | AP13: 0.22 | AQ13: -1.001 | AR13: 0
A14: OUTPUT RESPONSE REAL | B14: Y | F14: 12 | G14: 0.24 | H14: -2.0362 | I14: 0.29296875 | J14: =FOURIER!M14 -> 0 | K14: =FOURIER!N14 -> 0 | N14: 1.840776945 | S14: 0 | T14: 0 | AA14: 0 | AB14: -2.0362 | AP14: 0.24 | AQ14: -1.047 | AR14: 0
A15: OUTPUT RESPONSE IMAG | B15: Z | F15: 13 | G15: 0.26 | H15: -6.386 | I15: 0.3173828125 | J15: =FOURIER!M15 -> 0 | K15: =FOURIER!N15 -> 0 | N15: 1.994175024 | S15: 0 | T15: 0 | AA15: 0 | AB15: -6.386 | AP15: 0.26 | AQ15: -1.091 | AR15: 0
F16: 14 | G16: 0.28 | H16: -5.696 | I16: 0.341796875 | J16: =FOURIER!M16 -> 0 | K16: =FOURIER!N16 -> 0 | N16: 2.147573103 | S16: 0 | T16: 0 | AA16: 0 | AB16: -5.696 | AP16: 0.28 | AQ16: -1.136 | AR16: 0
A17: MIRROR | F17: 15 | G17: 0.3 | H17: -3.6261 | I17: 0.3662109375 | J17: =FOURIER!M17 -> 0 | K17: =FOURIER!N17 -> 0 | N17: 2.300971182 | S17: 0 | T17: 0 | AA17: 0 | AB17: -3.6261 | AP17: 0.3 | AQ17: -1.18 | AR17: 0
A18: INPUT C・H REAL | B18: S | F18: 16 | G18: 0.32 | H18: -4.1061 | I18: 0.390625 | J18: =FOURIER!M18 -> 0 | K18: =FOURIER!N18 -> 0 | N18: 2.454369261 | S18: 0 | T18: 0 | AA18: 0 | AB18: -4.1061 | AP18: 0.32 | AQ18: -1.223 | AR18: 0
A19: INPUT C・H IMAG | B19: T | F19: 17 | G19: 0.34 | H19: -2.5461 | I19: 0.4150390625 | J19: =FOURIER!M19 -> 0 | K19: =FOURIER!N19 -> 0 | N19: 2.607767339 | S19: 0 | T19: 0 | AA19: 0 | AB19: -2.5461 | AP19: 0.34 | AQ19: -1.266 | AR19: 0
A20: OUTPUT C・H REAL | B20: U | F20: 18 | G20: 0.36 | H20: 0.1838 | I20: 0.439453125 | J20: =FOURIER!M20 -> 0 | K20: =FOURIER!N20 -> 0 | N20: 2.761165418 | S20: 0 | T20: 0 | AA20: 0 | AB20: 0.1838 | AP20: 0.36 | AQ20: -1.306 | AR20: 0
A21: OUTPUT C・H IMAG | B21: V | F21: 19 | G21: 0.38 | H21: -0.5062 | I21: 0.4638671875 | J21: =FOURIER!M21 -> 0 | K21: =FOURIER!N21 -> 0 | N21: 2.914563497 | S21: 0 | T21: 0 | AA21: 0 | AB21: -0.5062 | AP21: 0.38 | AQ21: -1.344 | AR21: 0
F22: 20 | G22: 0.4 | H22: -4.556 | I22: 0.48828125 | J22: =FOURIER!M22 -> 0 | K22: =FOURIER!N22 -> 0 | N22: 3.067961576 | S22: 0 | T22: 0 | AA22: 0 | AB22: -4.556 | AP22: 0.4 | AQ22: -1.38 | AR22: 0
A23: ※無断複製、転載を禁ず | F23: 21 | G23: 0.42 | H23: -9.3259 | I23: 0.5126953125 | J23: =FOURIER!M23 -> 0 | K23: =FOURIER!N23 -> 0 | N23: 3.221359655 | S23: 0 | T23: 0 | AA23: 0 | AB23: -9.3259 | AP23: 0.42 | AQ23: -1.414 | AR23: 0
A24: ©Tokyo Tech Takeuchi Lab. | F24: 22 | G24: 0.44 | H24: -5.696 | I24: 0.537109375 | J24: =FOURIER!M24 -> 0 | K24: =FOURIER!N24 -> 0 | N24: 3.374757733 | S24: 0 | T24: 0 | AA24: 0 | AB24: -5.696 | AP24: 0.44 | AQ24: -1.449 | AR24: 0
A25: All rights reserved | F25: 23 | G25: 0.46 | H25: 2.5238 | I25: 0.5615234375 | J25: =FOURIER!M25 -> 0 | K25: =FOURIER!N25 -> 0 | N25: 3.528155812 | S25: 0 | T25: 0 | AA25: 0 | AB25: 2.5238 | AP25: 0.46 | AQ25: -1.483 | AR25: 0
F26: 24 | G26: 0.48 | H26: 4.6837 | I26: 0.5859375 | J26: =FOURIER!M26 -> 0 | K26: =FOURIER!N26 -> 0 | N26: 3.681553891 | S26: 0 | T26: 0 | AA26: 0 | AB26: 4.6837 | AP26: 0.48 | AQ26: -1.513 | AR26: 0
F27: 25 | G27: 0.5 | H27: 4.4437 | I27: 0.6103515625 | J27: =FOURIER!M27 -> 0 | K27: =FOURIER!N27 -> 0 | N27: 3.83495197 | S27: 0 | T27: 0 | AA27: 0 | AB27: 4.4437 | AP27: 0.5 | AQ27: -1.538 | AR27: 0
F28: 26 | G28: 0.52 | H28: 9.2436 | I28: 0.634765625 | J28: =FOURIER!M28 -> 0 | K28: =FOURIER!N28 -> 0 | N28: 3.988350049 | S28: 0 | T28: 0 | AA28: 0 | AB28: 9.2436 | AP28: 0.52 | AQ28: -1.558 | AR28: 0
F29: 27 | G29: 0.54 | H29: 13.6834 | I29: 0.6591796875 | J29: =FOURIER!M29 -> 0 | K29: =FOURIER!N29 -> 0 | N29: 4.141748127 | S29: 0 | T29: 0 | AA29: 0 | AB29: 13.6834 | AP29: 0.54 | AQ29: -1.571 | AR29: 0
F30: 28 | G30: 0.56 | H30: 8.2236 | I30: 0.68359375 | J30: =FOURIER!M30 -> 0 | K30: =FOURIER!N30 -> 0 | N30: 4.295146206 | S30: 0 | T30: 0 | AA30: 0 | AB30: 8.2236 | AP30: 0.56 | AQ30: -1.575 | AR30: 0
F31: 29 | G31: 0.58 | H31: 6.6337 | I31: 0.7080078125 | J31: =FOURIER!M31 -> 0 | K31: =FOURIER!N31 -> 0 | N31: 4.448544285 | S31: 0 | T31: 0 | AA31: 0 | AB31: 6.6337 | AP31: 0.58 | AQ31: -1.573 | AR31: 0
F32: 30 | G32: 0.6 | H32: 3.9937 | I32: 0.732421875 | J32: =FOURIER!M32 -> 0 | K32: =FOURIER!N32 -> 0 | N32: 4.601942364 | S32: 0 | T32: 0 | AA32: 0 | AB32: 3.9937 | AP32: 0.6 | AQ32: -1.566 | AR32: 0
F33: 31 | G33: 0.62 | H33: -6.5359 | I33: 0.7568359375 | J33: =FOURIER!M33 -> 0 | K33: =FOURIER!N33 -> 0 | N33: 4.755340442 | S33: 0 | T33: 0 | AA33: 0 | AB33: -6.5359 | AP33: 0.62 | AQ33: -1.554 | AR33: 0
F34: 32 | G34: 0.64 | H34: -11.0958 | I34: 0.78125 | J34: =FOURIER!M34 -> 0 | K34: =FOURIER!N34 -> 0 | N34: 4.908738521 | S34: 0 | T34: 0 | AA34: 0 | AB34: -11.0958 | AP34: 0.64 | AQ34: -1.541 | AR34: 0
F35: 33 | G35: 0.66 | H35: 0.4239 | I35: 0.8056640625 | J35: =FOURIER!M35 -> 0 | K35: =FOURIER!N35 -> 0 | N35: 5.0621366 | S35: 0 | T35: 0 | AA35: 0 | AB35: 0.4239 | AP35: 0.66 | AQ35: -1.529 | AR35: 0
F36: 34 | G36: 0.68 | H36: 14.9134 | I36: 0.830078125 | J36: =FOURIER!M36 -> 0 | K36: =FOURIER!N36 -> 0 | N36: 5.215534679 | S36: 0 | T36: 0 | AA36: 0 | AB36: 14.9134 | AP36: 0.68 | AQ36: -1.514 | AR36: 0
F37: 35 | G37: 0.7 | H37: 2.1938 | I37: 0.8544921875 | J37: =FOURIER!M37 -> 0 | K37: =FOURIER!N37 -> 0 | N37: 5.368932758 | S37: 0 | T37: 0 | AA37: 0 | AB37: 2.1938 | AP37: 0.7 | AQ37: -1.491 | AR37: 0
F38: 36 | G38: 0.72 | H38: -8.0659 | I38: 0.87890625 | J38: =FOURIER!M38 -> 0 | K38: =FOURIER!N38 -> 0 | N38: 5.522330836 | S38: 0 | T38: 0 | AA38: 0 | AB38: -8.0659 | AP38: 0.72 | AQ38: -1.464 | AR38: 0
F39: 37 | G39: 0.74 | H39: 4.4138 | I39: 0.9033203125 | J39: =FOURIER!M39 -> 0 | K39: =FOURIER!N39 -> 0 | N39: 5.675728915 | S39: 0 | T39: 0 | AA39: 0 | AB39: 4.4138 | AP39: 0.74 | AQ39: -1.437 | AR39: 0
F40: 38 | G40: 0.76 | H40: 15.9034 | I40: 0.927734375 | J40: =FOURIER!M40 -> 0 | K40: =FOURIER!N40 -> 0 | N40: 5.829126994 | S40: 0 | T40: 0 | AA40: 0 | AB40: 15.9034 | AP40: 0.76 | AQ40: -1.405 | AR40: 0
F41: 39 | G41: 0.78 | H41: 24.4532 | I41: 0.9521484375 | J41: =FOURIER!M41 -> 0 | K41: =FOURIER!N41 -> 0 | N41: 5.982525073 | S41: 0 | T41: 0 | AA41: 0 | AB41: 24.4532 | AP41: 0.78 | AQ41: -1.364 | AR41: 0
F42: 40 | G42: 0.8 | H42: 36.6928 | I42: 0.9765625 | J42: =FOURIER!M42 -> 0 | K42: =FOURIER!N42 -> 0 | N42: 6.135923152 | S42: 0 | T42: 0 | AA42: 0 | AB42: 36.6928 | AP42: 0.8 | AQ42: -1.311 | AR42: 0
F43: 41 | G43: 0.82 | H43: 38.3727 | I43: 1.000976562 | J43: =FOURIER!M43 -> 0 | K43: =FOURIER!N43 -> 0 | N43: 6.28932123 | S43: 0 | T43: 0 | AA43: 0 | AB43: 38.3727 | AP43: 0.82 | AQ43: -1.241 | AR43: 0
F44: 42 | G44: 0.84 | H44: 20.1633 | I44: 1.025390625 | J44: =FOURIER!M44 -> 0 | K44: =FOURIER!N44 -> 0 | N44: 6.442719309 | S44: 0 | T44: 0 | AA44: 0 | AB44: 20.1633 | AP44: 0.84 | AQ44: -1.154 | AR44: 0
F45: 43 | G45: 0.86 | H45: 3.5738 | I45: 1.049804688 | J45: =FOURIER!M45 -> 0 | K45: =FOURIER!N45 -> 0 | N45: 6.596117388 | S45: 0 | T45: 0 | AA45: 0 | AB45: 3.5738 | AP45: 0.86 | AQ45: -1.058 | AR45: 0
F46: 44 | G46: 0.88 | H46: -1.826 | I46: 1.07421875 | J46: =FOURIER!M46 -> 0 | K46: =FOURIER!N46 -> 0 | N46: 6.749515467 | S46: 0 | T46: 0 | AA46: 0 | AB46: -1.826 | AP46: 0.88 | AQ46: -0.957 | AR46: 0
F47: 45 | G47: 0.9 | H47: 0.0039 | I47: 1.098632812 | J47: =FOURIER!M47 -> 0 | K47: =FOURIER!N47 -> 0 | N47: 6.902913545 | S47: 0 | T47: 0 | AA47: 0 | AB47: 0.0039 | AP47: 0.9 | AQ47: -0.856 | AR47: 0
F48: 46 | G48: 0.92 | H48: 14.7935 | I48: 1.123046875 | J48: =FOURIER!M48 -> 0 | K48: =FOURIER!N48 -> 0 | N48: 7.056311624 | S48: 0 | T48: 0 | AA48: 0 | AB48: 14.7935 | AP48: 0.92 | AQ48: -0.753 | AR48: 0
F49: 47 | G49: 0.94 | H49: 3.3938 | I49: 1.147460938 | J49: =FOURIER!M49 -> 0 | K49: =FOURIER!N49 -> 0 | N49: 7.209709703 | S49: 0 | T49: 0 | AA49: 0 | AB49: 3.3938 | AP49: 0.94 | AQ49: -0.643 | AR49: 0
F50: 48 | G50: 0.96 | H50: -40.1948 | I50: 1.171875 | J50: =FOURIER!M50 -> 0 | K50: =FOURIER!N50 -> 0 | N50: 7.363107782 | S50: 0 | T50: 0 | AA50: 0 | AB50: -40.1948 | AP50: 0.96 | AQ50: -0.533 | AR50: 0
F51: 49 | G51: 0.98 | H51: -49.7945 | I51: 1.196289062 | J51: =FOURIER!M51 -> 0 | K51: =FOURIER!N51 -> 0 | N51: 7.516505861 | S51: 0 | T51: 0 | AA51: 0 | AB51: -49.7945 | AP51: 0.98 | AQ51: -0.437 | AR51: 0
F52: 50 | G52: 1 | H52: -36.1449 | I52: 1.220703125 | J52: =FOURIER!M52 -> 0 | K52: =FOURIER!N52 -> 0 | N52: 7.669903939 | S52: 0 | T52: 0 | AA52: 0 | AB52: -36.1449 | AP52: 1 | AQ52: -0.36 | AR52: 0
F53: 51 | G53: 1.02 | H53: -22.0454 | I53: 1.245117188 | J53: =FOURIER!M53 -> 0 | K53: =FOURIER!N53 -> 0 | N53: 7.823302018 | S53: 0 | T53: 0 | AA53: 0 | AB53: -22.0454 | AP53: 1.02 | AQ53: -0.296 | AR53: 0
F54: 52 | G54: 1.04 | H54: -9.6557 | I54: 1.26953125 | J54: =FOURIER!M54 -> 0 | K54: =FOURIER!N54 -> 0 | N54: 7.976700097 | S54: 0 | T54: 0 | AA54: 0 | AB54: -9.6557 | AP54: 1.04 | AQ54: -0.241 | AR54: 0
F55: 53 | G55: 1.06 | H55: -0.896 | I55: 1.293945312 | J55: =FOURIER!M55 -> 0 | K55: =FOURIER!N55 -> 0 | N55: 8.130098176 | S55: 0 | T55: 0 | AA55: 0 | AB55: -0.896 | AP55: 1.06 | AQ55: -0.19 | AR55: 0
F56: 54 | G56: 1.08 | H56: 0.364 | I56: 1.318359375 | J56: =FOURIER!M56 -> 0 | K56: =FOURIER!N56 -> 0 | N56: 8.283496255 | S56: 0 | T56: 0 | AA56: 0 | AB56: 0.364 | AP56: 1.08 | AQ56: -0.139 | AR56: 0
F57: 55 | G57: 1.1 | H57: -20.6954 | I57: 1.342773438 | J57: =FOURIER!M57 -> 0 | K57: =FOURIER!N57 -> 0 | N57: 8.436894333 | S57: 0 | T57: 0 | AA57: 0 | AB57: -20.6954 | AP57: 1.1 | AQ57: -0.089 | AR57: 0
F58: 56 | G58: 1.12 | H58: -31.405 | I58: 1.3671875 | J58: =FOURIER!M58 -> 0 | K58: =FOURIER!N58 -> 0 | N58: 8.590292412 | S58: 0 | T58: 0 | AA58: 0 | AB58: -31.405 | AP58: 1.12 | AQ58: -0.047 | AR58: 0
F59: 57 | G59: 1.14 | H59: -24.9552 | I59: 1.391601562 | J59: =FOURIER!M59 -> 0 | K59: =FOURIER!N59 -> 0 | N59: 8.743690491 | S59: 0 | T59: 0 | AA59: 0 | AB59: -24.9552 | AP59: 1.14 | AQ59: -0.016 | AR59: 0
F60: 58 | G60: 1.16 | H60: -14.0656 | I60: 1.416015625 | J60: =FOURIER!M60 -> 0 | K60: =FOURIER!N60 -> 0 | N60: 8.89708857 | S60: 0 | T60: 0 | AA60: 0 | AB60: -14.0656 | AP60: 1.16 | AQ60: 0.004 | AR60: 0
F61: 59 | G61: 1.18 | H61: 3.6639 | I61: 1.440429688 | J61: =FOURIER!M61 -> 0 | K61: =FOURIER!N61 -> 0 | N61: 9.050486649 | S61: 0 | T61: 0 | AA61: 0 | AB61: 3.6639 | AP61: 1.18 | AQ61: 0.019 | AR61: 0
F62: 60 | G62: 1.2 | H62: 10.9837 | I62: 1.46484375 | J62: =FOURIER!M62 -> 0 | K62: =FOURIER!N62 -> 0 | N62: 9.203884727 | S62: 0 | T62: 0 | AA62: 0 | AB62: 10.9837 | AP62: 1.2 | AQ62: 0.035 | AR62: 0
F63: 61 | G63: 1.22 | H63: -2.1259 | I63: 1.489257812 | J63: =FOURIER!M63 -> 0 | K63: =FOURIER!N63 -> 0 | N63: 9.357282806 | S63: 0 | T63: 0 | AA63: 0 | AB63: -2.1259 | AP63: 1.22 | AQ63: 0.054 | AR63: 0
F64: 62 | G64: 1.24 | H64: -16.7955 | I64: 1.513671875 | J64: =FOURIER!M64 -> 0 | K64: =FOURIER!N64 -> 0 | N64: 9.510680885 | S64: 0 | T64: 0 | AA64: 0 | AB64: -16.7955 | AP64: 1.24 | AQ64: 0.072 | AR64: 0
F65: 63 | G65: 1.26 | H65: -16.4055 | I65: 1.538085938 | J65: =FOURIER!M65 -> 0 | K65: =FOURIER!N65 -> 0 | N65: 9.664078964 | S65: 0 | T65: 0 | AA65: 0 | AB65: -16.4055 | AP65: 1.26 | AQ65: 0.084 | AR65: 0
F66: 64 | G66: 1.28 | H66: -12.7756 | I66: 1.5625 | J66: =FOURIER!M66 -> 0 | K66: =FOURIER!N66 -> 0 | N66: =2*PI()/B$9/B$6*F66 -> 9.817477042 | S66: =J66*O66-K66*P66 -> 0 | T66: =J66*P66+K66*O66 -> 0 | AA66: 0 | AB66: -12.7756 | AP66: =G66 -> 1.28 | AQ66: 0.09 | AR66: 0
F67: 65 | G67: =B$6*F67 -> 1.3 | H67: -9.9557 | I67: =F67/B$9/B$6 -> 1.586914062 | J67: =FOURIER!M67 -> 0 | K67: =FOURIER!N67 -> 0 | N67: 9.970875121 | S67: 0 | T67: 0 | AA67: =(Y67-Y66)/B$6 -> 0 | AB67: =(AA67-AA66)/B$6+H67 -> -9.9557 | AP67: 1.3 | AQ67: 0.09 | AR67: 0 | AS67: =(AQ67-AQ66)/O$6 ->  | AT67: =(AS67-AS66)/O$6+S67 -> 
F68: 66 | G68: 1.32 | H68: -4.5558 | I68: 1.611328125 | J68: =FOURIER!M68 -> 0 | K68: =FOURIER!N68 -> 0 | N68: 10.1242732 | S68: 0 | T68: 0 | AA68: 0 | AB68: -4.5558 | AP68: 1.32 | AQ68: 0.085 | AR68: 0
F69: 67 | G69: 1.34 | H69: -4.0758 | I69: 1.635742188 | J69: =FOURIER!M69 -> 0 | K69: =FOURIER!N69 -> 0 | N69: 10.27767128 | S69: 0 | T69: 0 | AA69: 0 | AB69: -4.0758 | AP69: 1.34 | AQ69: 0.079 | AR69: 0
F70: 68 | G70: 1.36 | H70: -5.8458 | I70: 1.66015625 | J70: =FOURIER!M70 -> 0 | K70: =FOURIER!N70 -> 0 | N70: 10.43106936 | S70: 0 | T70: 0 | AA70: 0 | AB70: -5.8458 | AP70: 1.36 | AQ70: 0.071 | AR70: 0
F71: 69 | G71: 1.38 | H71: -13.5855 | I71: 1.684570312 | J71: =FOURIER!M71 -> 0 | K71: =FOURIER!N71 -> 0 | N71: 10.58446744 | S71: 0 | T71: 0 | AA71: 0 | AB71: -13.5855 | AP71: 1.38 | AQ71: 0.06 | AR71: 0
F72: 70 | G72: 1.4 | H72: -26.7551 | I72: 1.708984375 | J72: =FOURIER!M72 -> 0 | K72: =FOURIER!N72 -> 0 | N72: 10.73786552 | S72: 0 | T72: 0 | AA72: 0 | AB72: -26.7551 | AP72: 1.4 | AQ72: 0.044 | AR72: 0
F73: 71 | G73: 1.42 | H73: -20.6953 | I73: 1.733398438 | J73: =FOURIER!M73 -> 0 | K73: =FOURIER!N73 -> 0 | N73: 10.89126359 | S73: 0 | T73: 0 | AA73: 0 | AB73: -20.6953 | AP73: 1.42 | AQ73: 0.017 | AR73: 0
F74: 72 | G74: 1.44 | H74: 24.1533 | I74: 1.7578125 | J74: =FOURIER!M74 -> 0 | K74: =FOURIER!N74 -> 0 | N74: 11.04466167 | S74: 0 | T74: 0 | AA74: 0 | AB74: 24.1533 | AP74: 1.44 | AQ74: -0.016 | AR74: 0
F75: 73 | G75: 1.46 | H75: 65.4621 | I75: 1.782226562 | J75: =FOURIER!M75 -> 0 | K75: =FOURIER!N75 -> 0 | N75: 11.19805975 | S75: 0 | T75: 0 | AA75: 0 | AB75: 65.4621 | AP75: 1.46 | AQ75: -0.04 | AR75: 0
F76: 74 | G76: 1.48 | H76: 44.8227 | I76: 1.806640625 | J76: =FOURIER!M76 -> 0 | K76: =FOURIER!N76 -> 0 | N76: 11.35145783 | S76: 0 | T76: 0 | AA76: 0 | AB76: 44.8227 | AP76: 1.48 | AQ76: -0.039 | AR76: 0
F77: 75 | G77: 1.5 | H77: 0.8441 | I77: 1.831054688 | J77: =FOURIER!M77 -> 0 | K77: =FOURIER!N77 -> 0 | N77: 11.50485591 | S77: 0 | T77: 0 | AA77: 0 | AB77: 0.8441 | AP77: 1.5 | AQ77: -0.022 | AR77: 0
F78: 76 | G78: 1.52 | H78: -14.9055 | I78: 1.85546875 | J78: =FOURIER!M78 -> 0 | K78: =FOURIER!N78 -> 0 | N78: 11.65825399 | S78: 0 | T78: 0 | AA78: 0 | AB78: -14.9055 | AP78: 1.52 | AQ78: -0.003 | AR78: 0
F79: 77 | G79: 1.54 | H79: 7.3239 | I79: 1.879882812 | J79: =FOURIER!M79 -> 0 | K79: =FOURIER!N79 -> 0 | N79: 11.81165207 | S79: 0 | T79: 0 | AA79: 0 | AB79: 7.3239 | AP79: 1.54 | AQ79: 0.012 | AR79: 0
F80: 78 | G80: 1.56 | H80: 30.4832 | I80: 1.904296875 | J80: =FOURIER!M80 -> 0 | K80: =FOURIER!N80 -> 0 | N80: 11.96505015 | S80: 0 | T80: 0 | AA80: 0 | AB80: 30.4832 | AP80: 1.56 | AQ80: 0.029 | AR80: 0
F81: 79 | G81: 1.58 | H81: 13.4137 | I81: 1.928710938 | J81: =FOURIER!M81 -> 0 | K81: =FOURIER!N81 -> 0 | N81: 12.11844822 | S81: 0 | T81: 0 | AA81: 0 | AB81: 13.4137 | AP81: 1.58 | AQ81: 0.057 | AR81: 0
F82: 80 | G82: 1.6 | H82: -12.0255 | I82: 1.953125 | J82: =FOURIER!M82 -> 0 | K82: =FOURIER!N82 -> 0 | N82: 12.2718463 | S82: 0 | T82: 0 | AA82: 0 | AB82: -12.0255 | AP82: 1.6 | AQ82: 0.089 | AR82: 0
F83: 81 | G83: 1.62 | H83: -24.1151 | I83: 1.977539062 | J83: =FOURIER!M83 -> 0 | K83: =FOURIER!N83 -> 0 | N83: 12.42524438 | S83: 0 | T83: 0 | AA83: 0 | AB83: -24.1151 | AP83: 1.62 | AQ83: 0.117 | AR83: 0
F84: 82 | G84: 1.64 | H84: -28.495 | I84: 2.001953125 | J84: =FOURIER!M84 -> 0 | K84: =FOURIER!N84 -> 0 | N84: 12.57864246 | S84: 0 | T84: 0 | AA84: 0 | AB84: -28.495 | AP84: 1.64 | AQ84: 0.136 | AR84: 0
F85: 83 | G85: 1.66 | H85: -14.0954 | I85: 2.026367188 | J85: =FOURIER!M85 -> 0 | K85: =FOURIER!N85 -> 0 | N85: 12.73204054 | S85: 0 | T85: 0 | AA85: 0 | AB85: -14.0954 | AP85: 1.66 | AQ85: 0.143 | AR85: 0
F86: 84 | G86: 1.68 | H86: -10.6755 | I86: 2.05078125 | J86: =FOURIER!M86 -> 0 | K86: =FOURIER!N86 -> 0 | N86: 12.88543862 | S86: 0 | T86: 0 | AA86: 0 | AB86: -10.6755 | AP86: 1.68 | AQ86: 0.144 | AR86: 0
F87: 85 | G87: 1.7 | H87: -5.3957 | I87: 2.075195312 | J87: =FOURIER!M87 -> 0 | K87: =FOURIER!N87 -> 0 | N87: 13.0388367 | S87: 0 | T87: 0 | AA87: 0 | AB87: -5.3957 | AP87: 1.7 | AQ87: 0.14 | AR87: 0
F88: 86 | G88: 1.72 | H88: 13.4737 | I88: 2.099609375 | J88: =FOURIER!M88 -> 0 | K88: =FOURIER!N88 -> 0 | N88: 13.19223478 | S88: 0 | T88: 0 | AA88: 0 | AB88: 13.4737 | AP88: 1.72 | AQ88: 0.135 | AR88: 0
F89: 87 | G89: 1.74 | H89: 18.3336 | I89: 2.124023438 | J89: =FOURIER!M89 -> 0 | K89: =FOURIER!N89 -> 0 | N89: 13.34563285 | S89: 0 | T89: 0 | AA89: 0 | AB89: 18.3336 | AP89: 1.74 | AQ89: 0.134 | AR89: 0
F90: 88 | G90: 1.76 | H90: 27.9933 | I90: 2.1484375 | J90: =FOURIER!M90 -> 0 | K90: =FOURIER!N90 -> 0 | N90: 13.49903093 | S90: 0 | T90: 0 | AA90: 0 | AB90: 27.9933 | AP90: 1.76 | AQ90: 0.14 | AR90: 0
F91: 89 | G91: 1.78 | H91: 33.1231 | I91: 2.172851562 | J91: =FOURIER!M91 -> 0 | K91: =FOURIER!N91 -> 0 | N91: 13.65242901 | S91: 0 | T91: 0 | AA91: 0 | AB91: 33.1231 | AP91: 1.78 | AQ91: 0.157 | AR91: 0
F92: 90 | G92: 1.8 | H92: 31.5632 | I92: 2.197265625 | J92: =FOURIER!M92 -> 0 | K92: =FOURIER!N92 -> 0 | N92: 13.80582709 | S92: 0 | T92: 0 | AA92: 0 | AB92: 31.5632 | AP92: 1.8 | AQ92: 0.187 | AR92: 0
F93: 91 | G93: 1.82 | H93: 40.0829 | I93: 2.221679688 | J93: =FOURIER!M93 -> 0 | K93: =FOURIER!N93 -> 0 | N93: 13.95922517 | S93: 0 | T93: 0 | AA93: 0 | AB93: 40.0829 | AP93: 1.82 | AQ93: 0.229 | AR93: 0
F94: 92 | G94: 1.84 | H94: 8.5839 | I94: 2.24609375 | J94: =FOURIER!M94 -> 0 | K94: =FOURIER!N94 -> 0 | N94: 14.11262325 | S94: 0 | T94: 0 | AA94: 0 | AB94: 8.5839 | AP94: 1.84 | AQ94: 0.285 | AR94: 0
F95: 93 | G95: 1.86 | H95: -23.5151 | I95: 2.270507812 | J95: =FOURIER!M95 -> 0 | K95: =FOURIER!N95 -> 0 | N95: 14.26602133 | S95: 0 | T95: 0 | AA95: 0 | AB95: -23.5151 | AP95: 1.86 | AQ95: 0.344 | AR95: 0
F96: 94 | G96: 1.88 | H96: -38.9946 | I96: 2.294921875 | J96: =FOURIER!M96 -> 0 | K96: =FOURIER!N96 -> 0 | N96: 14.41941941 | S96: 0 | T96: 0 | AA96: 0 | AB96: -38.9946 | AP96: 1.88 | AQ96: 0.393 | AR96: 0
F97: 95 | G97: 1.9 | H97: -26.215 | I97: 2.319335938 | J97: =FOURIER!M97 -> 0 | K97: =FOURIER!N97 -> 0 | N97: 14.57281748 | S97: 0 | T97: 0 | AA97: 0 | AB97: -26.215 | AP97: 1.9 | AQ97: 0.426 | AR97: 0
F98: 96 | G98: 1.92 | H98: 26.9434 | I98: 2.34375 | J98: =FOURIER!M98 -> 0 | K98: =FOURIER!N98 -> 0 | N98: 14.72621556 | S98: 0 | T98: 0 | AA98: 0 | AB98: 26.9434 | AP98: 1.92 | AQ98: 0.45 | AR98: 0
F99: 97 | G99: 1.94 | H99: 21.0635 | I99: 2.368164062 | J99: =FOURIER!M99 -> 0 | K99: =FOURIER!N99 -> 0 | N99: 14.87961364 | S99: 0 | T99: 0 | AA99: 0 | AB99: 21.0635 | AP99: 1.94 | AQ99: 0.481 | AR99: 0
F100: 98 | G100: 1.96 | H100: 9.3039 | I100: 2.392578125 | J100: =FOURIER!M100 -> 0 | K100: =FOURIER!N100 -> 0 | N100: 15.03301172 | S100: 0 | T100: 0 | AA100: 0 | AB100: 9.3039 | AP100: 1.96 | AQ100: 0.519 | AR100: 0
F101: 99 | G101: 1.98 | H101: 15.4237 | I101: 2.416992188 | J101: =FOURIER!M101 -> 0 | K101: =FOURIER!N101 -> 0 | N101: 15.1864098 | S101: 0 | T101: 0 | AA101: 0 | AB101: 15.4237 | AP101: 1.98 | AQ101: 0.56 | AR101: 0
F102: 100 | G102: 2 | H102: 13.7138 | I102: 2.44140625 | J102: =FOURIER!M102 -> 0 | K102: =FOURIER!N102 -> 0 | N102: 15.33980788 | S102: 0 | T102: 0 | AA102: 0 | AB102: 13.7138 | AP102: 2 | AQ102: 0.606 | AR102: 0
F103: 101 | G103: 2.02 | H103: 25.3534 | I103: 2.465820312 | J103: =FOURIER!M103 -> 0 | K103: =FOURIER!N103 -> 0 | N103: 15.49320596 | S103: 0 | T103: 0 | AA103: 0 | AB103: 25.3534 | AP103: 2.02 | AQ103: 0.657 | AR103: 0
F104: 102 | G104: 2.04 | H104: 7.324 | I104: 2.490234375 | J104: =FOURIER!M104 -> 0 | K104: =FOURIER!N104 -> 0 | N104: 15.64660404 | S104: 0 | T104: 0 | AA104: 0 | AB104: 7.324 | AP104: 2.04 | AQ104: 0.715 | AR104: 0
F105: 103 | G105: 2.06 | H105: -17.4252 | I105: 2.514648438 | J105: =FOURIER!M105 -> 0 | K105: =FOURIER!N105 -> 0 | N105: 15.80000212 | S105: 0 | T105: 0 | AA105: 0 | AB105: -17.4252 | AP105: 2.06 | AQ105: 0.774 | AR105: 0
F106: 104 | G106: 2.08 | H106: -23.725 | I106: 2.5390625 | J106: =FOURIER!M106 -> 0 | K106: =FOURIER!N106 -> 0 | N106: 15.95340019 | S106: 0 | T106: 0 | AA106: 0 | AB106: -23.725 | AP106: 2.08 | AQ106: 0.825 | AR106: 0
F107: 105 | G107: 2.1 | H107: -20.9051 | I107: 2.563476562 | J107: =FOURIER!M107 -> 0 | K107: =FOURIER!N107 -> 0 | N107: 16.10679827 | S107: 0 | T107: 0 | AA107: 0 | AB107: -20.9051 | AP107: 2.1 | AQ107: 0.865 | AR107: 0
F108: 106 | G108: 2.12 | H108: -12.6854 | I108: 2.587890625 | J108: =FOURIER!M108 -> 0 | K108: =FOURIER!N108 -> 0 | N108: 16.26019635 | S108: 0 | T108: 0 | AA108: 0 | AB108: -12.6854 | AP108: 2.12 | AQ108: 0.895 | AR108: 0
F109: 107 | G109: 2.14 | H109: -28.5849 | I109: 2.612304688 | J109: =FOURIER!M109 -> 0 | K109: =FOURIER!N109 -> 0 | N109: 16.41359443 | S109: 0 | T109: 0 | AA109: 0 | AB109: -28.5849 | AP109: 2.14 | AQ109: 0.917 | AR109: 0
F110: 108 | G110: 2.16 | H110: -28.5849 | I110: 2.63671875 | J110: =FOURIER!M110 -> 0 | K110: =FOURIER!N110 -> 0 | N110: 16.56699251 | S110: 0 | T110: 0 | AA110: 0 | AB110: -28.5849 | AP110: 2.16 | AQ110: 0.927 | AR110: 0
F111: 109 | G111: 2.18 | H111: -15.6553 | I111: 2.661132812 | J111: =FOURIER!M111 -> 0 | K111: =FOURIER!N111 -> 0 | N111: 16.72039059 | S111: 0 | T111: 0 | AA111: 0 | AB111: -15.6553 | AP111: 2.18 | AQ111: 0.923 | AR111: 0
F112: 110 | G112: 2.2 | H112: -15.1153 | I112: 2.685546875 | J112: =FOURIER!M112 -> 0 | K112: =FOURIER!N112 -> 0 | N112: 16.87378867 | S112: 0 | T112: 0 | AA112: 0 | AB112: -15.1153 | AP112: 2.2 | AQ112: 0.911 | AR112: 0
F113: 111 | G113: 2.22 | H113: 6.5141 | I113: 2.709960938 | J113: =FOURIER!M113 -> 0 | K113: =FOURIER!N113 -> 0 | N113: 17.02718675 | S113: 0 | T113: 0 | AA113: 0 | AB113: 6.5141 | AP113: 2.22 | AQ113: 0.892 | AR113: 0
F114: 112 | G114: 2.24 | H114: 22.4136 | I114: 2.734375 | J114: =FOURIER!M114 -> 0 | K114: =FOURIER!N114 -> 0 | N114: 17.18058482 | S114: 0 | T114: 0 | AA114: 0 | AB114: 22.4136 | AP114: 2.24 | AQ114: 0.874 | AR114: 0
F115: 113 | G115: 2.26 | H115: 21.6636 | I115: 2.758789062 | J115: =FOURIER!M115 -> 0 | K115: =FOURIER!N115 -> 0 | N115: 17.3339829 | S115: 0 | T115: 0 | AA115: 0 | AB115: 21.6636 | AP115: 2.26 | AQ115: 0.862 | AR115: 0
F116: 114 | G116: 2.28 | H116: 15.9638 | I116: 2.783203125 | J116: =FOURIER!M116 -> 0 | K116: =FOURIER!N116 -> 0 | N116: 17.48738098 | S116: 0 | T116: 0 | AA116: 0 | AB116: 15.9638 | AP116: 2.28 | AQ116: 0.857 | AR116: 0
F117: 115 | G117: 2.3 | H117: -0.7757 | I117: 2.807617188 | J117: =FOURIER!M117 -> 0 | K117: =FOURIER!N117 -> 0 | N117: 17.64077906 | S117: 0 | T117: 0 | AA117: 0 | AB117: -0.7757 | AP117: 2.3 | AQ117: 0.857 | AR117: 0
F118: 116 | G118: 2.32 | H118: -4.4656 | I118: 2.83203125 | J118: =FOURIER!M118 -> 0 | K118: =FOURIER!N118 -> 0 | N118: 17.79417714 | S118: 0 | T118: 0 | AA118: 0 | AB118: -4.4656 | AP118: 2.32 | AQ118: 0.854 | AR118: 0
F119: 117 | G119: 2.34 | H119: 15.9638 | I119: 2.856445312 | J119: =FOURIER!M119 -> 0 | K119: =FOURIER!N119 -> 0 | N119: 17.94757522 | S119: 0 | T119: 0 | AA119: 0 | AB119: 15.9638 | AP119: 2.34 | AQ119: 0.85 | AR119: 0
F120: 118 | G120: 2.36 | H120: 25.1135 | I120: 2.880859375 | J120: =FOURIER!M120 -> 0 | K120: =FOURIER!N120 -> 0 | N120: 18.1009733 | S120: 0 | T120: 0 | AA120: 0 | AB120: 25.1135 | AP120: 2.36 | AQ120: 0.849 | AR120: 0
F121: 119 | G121: 2.38 | H121: 18.2437 | I121: 2.905273438 | J121: =FOURIER!M121 -> 0 | K121: =FOURIER!N121 -> 0 | N121: 18.25437138 | S121: 0 | T121: 0 | AA121: 0 | AB121: 18.2437 | AP121: 2.38 | AQ121: 0.856 | AR121: 0
F122: 120 | G122: 2.4 | H122: 16.7438 | I122: 2.9296875 | J122: =FOURIER!M122 -> 0 | K122: =FOURIER!N122 -> 0 | N122: 18.40776945 | S122: 0 | T122: 0 | AA122: 0 | AB122: 16.7438 | AP122: 2.4 | AQ122: 0.869 | AR122: 0
F123: 121 | G123: 2.42 | H123: 16.6238 | I123: 2.954101562 | J123: =FOURIER!M123 -> 0 | K123: =FOURIER!N123 -> 0 | N123: 18.56116753 | S123: 0 | T123: 0 | AA123: 0 | AB123: 16.6238 | AP123: 2.42 | AQ123: 0.888 | AR123: 0
F124: 122 | G124: 2.44 | H124: -9.4754 | I124: 2.978515625 | J124: =FOURIER!M124 -> 0 | K124: =FOURIER!N124 -> 0 | N124: 18.71456561 | S124: 0 | T124: 0 | AA124: 0 | AB124: -9.4754 | AP124: 2.44 | AQ124: 0.909 | AR124: 0
F125: 123 | G125: 2.46 | H125: -24.8049 | I125: 3.002929688 | J125: =FOURIER!M125 -> 0 | K125: =FOURIER!N125 -> 0 | N125: 18.86796369 | S125: 0 | T125: 0 | AA125: 0 | AB125: -24.8049 | AP125: 2.46 | AQ125: 0.926 | AR125: 0
F126: 124 | G126: 2.48 | H126: -2.8456 | I126: 3.02734375 | J126: =FOURIER!M126 -> 0 | K126: =FOURIER!N126 -> 0 | N126: 19.02136177 | S126: 0 | T126: 0 | AA126: 0 | AB126: -2.8456 | AP126: 2.48 | AQ126: 0.932 | AR126: 0
F127: 125 | G127: 2.5 | H127: 36.5432 | I127: 3.051757812 | J127: =FOURIER!M127 -> 0 | K127: =FOURIER!N127 -> 0 | N127: 19.17475985 | S127: 0 | T127: 0 | AA127: 0 | AB127: 36.5432 | AP127: 2.5 | AQ127: 0.936 | AR127: 0
F128: 126 | G128: 2.52 | H128: 28.9234 | I128: 3.076171875 | J128: =FOURIER!M128 -> 0 | K128: =FOURIER!N128 -> 0 | N128: 19.32815793 | S128: 0 | T128: 0 | AA128: 0 | AB128: 28.9234 | AP128: 2.52 | AQ128: 0.95 | AR128: 0
F129: 127 | G129: 2.54 | H129: -22.165 | I129: 3.100585938 | J129: =FOURIER!M129 -> 0 | K129: =FOURIER!N129 -> 0 | N129: 19.48155601 | S129: 0 | T129: 0 | AA129: 0 | AB129: -22.165 | AP129: 2.54 | AQ129: 0.973 | AR129: 0
F130: 128 | G130: 2.56 | H130: -40.6744 | I130: 3.125 | J130: =FOURIER!M130 -> 0 | K130: =FOURIER!N130 -> 0 | N130: =2*PI()/B$9/B$6*F130 -> 19.63495408 | S130: =J130*O130-K130*P130 -> 0 | T130: =J130*P130+K130*O130 -> 0 | AA130: 0 | AB130: -40.6744 | AP130: =G130 -> 2.56 | AQ130: 0.986 | AR130: 0
F131: 129 | G131: =B$6*F131 -> 2.58 | H131: -13.7352 | I131: =F131/B$9/B$6 -> 3.149414062 | J131: =FOURIER!M131 -> 0 | K131: =FOURIER!N131 -> 0 | N131: 19.78835216 | S131: 0 | T131: 0 | AA131: =(Y131-Y130)/B$6 -> 0 | AB131: =(AA131-AA130)/B$6+H131 -> -13.7352 | AP131: 2.58 | AQ131: 0.983 | AR131: 0 | AS131: =(AQ131-AQ130)/O$6 ->  | AT131: =(AS131-AS130)/O$6+S131 -> 
F132: 130 | G132: 2.6 | H132: 4.2342 | I132: 3.173828125 | J132: =FOURIER!M132 -> 0 | K132: =FOURIER!N132 -> 0 | N132: 19.94175024 | S132: 0 | T132: 0 | AA132: 0 | AB132: 4.2342 | AP132: 2.6 | AQ132: 0.971 | AR132: 0
F133: 131 | G133: 2.62 | H133: -13.3752 | I133: 3.198242188 | J133: =FOURIER!M133 -> 0 | K133: =FOURIER!N133 -> 0 | N133: 20.09514832 | S133: 0 | T133: 0 | AA133: 0 | AB133: -13.3752 | AP133: 2.62 | AQ133: 0.958 | AR133: 0
F134: 132 | G134: 2.64 | H134: -25.7349 | I134: 3.22265625 | J134: =FOURIER!M134 -> 0 | K134: =FOURIER!N134 -> 0 | N134: 20.2485464 | S134: 0 | T134: 0 | AA134: 0 | AB134: -25.7349 | AP134: 2.64 | AQ134: 0.938 | AR134: 0
F135: 133 | G135: 2.66 | H135: 12.334 | I135: 3.247070312 | J135: =FOURIER!M135 -> 0 | K135: =FOURIER!N135 -> 0 | N135: 20.40194448 | S135: 0 | T135: 0 | AA135: 0 | AB135: 12.334 | AP135: 2.66 | AQ135: 0.908 | AR135: 0
F136: 134 | G136: 2.68 | H136: 42.3331 | I136: 3.271484375 | J136: =FOURIER!M136 -> 0 | K136: =FOURIER!N136 -> 0 | N136: 20.55534256 | S136: 0 | T136: 0 | AA136: 0 | AB136: 42.3331 | AP136: 2.68 | AQ136: 0.881 | AR136: 0
F137: 135 | G137: 2.7 | H137: 0.0644 | I137: 3.295898438 | J137: =FOURIER!M137 -> 0 | K137: =FOURIER!N137 -> 0 | N137: 20.70874064 | S137: 0 | T137: 0 | AA137: 0 | AB137: 0.0644 | AP137: 2.7 | AQ137: 0.867 | AR137: 0
F138: 136 | G138: 2.72 | H138: -60.3238 | I138: 3.3203125 | J138: =FOURIER!M138 -> 0 | K138: =FOURIER!N138 -> 0 | N138: 20.86213872 | S138: 0 | T138: 0 | AA138: 0 | AB138: -60.3238 | AP138: 2.72 | AQ138: 0.85 | AR138: 0
F139: 137 | G139: 2.74 | H139: -70.2235 | I139: 3.344726562 | J139: =FOURIER!M139 -> 0 | K139: =FOURIER!N139 -> 0 | N139: 21.01553679 | S139: 0 | T139: 0 | AA139: 0 | AB139: -70.2235 | AP139: 2.74 | AQ139: 0.809 | AR139: 0
F140: 138 | G140: 2.76 | H140: -13.8552 | I140: 3.369140625 | J140: =FOURIER!M140 -> 0 | K140: =FOURIER!N140 -> 0 | N140: 21.16893487 | S140: 0 | T140: 0 | AA140: 0 | AB140: -13.8552 | AP140: 2.76 | AQ140: 0.741 | AR140: 0
F141: 139 | G141: 2.78 | H141: 24.2436 | I141: 3.393554688 | J141: =FOURIER!M141 -> 0 | K141: =FOURIER!N141 -> 0 | N141: 21.32233295 | S141: 0 | T141: 0 | AA141: 0 | AB141: 24.2436 | AP141: 2.78 | AQ141: 0.666 | AR141: 0
F142: 140 | G142: 2.8 | H142: -2.2155 | I142: 3.41796875 | J142: =FOURIER!M142 -> 0 | K142: =FOURIER!N142 -> 0 | N142: 21.47573103 | S142: 0 | T142: 0 | AA142: 0 | AB142: -2.2155 | AP142: 2.8 | AQ142: 0.597 | AR142: 0
F143: 141 | G143: 2.82 | H143: -8.6953 | I143: 3.442382812 | J143: =FOURIER!M143 -> 0 | K143: =FOURIER!N143 -> 0 | N143: 21.62912911 | S143: 0 | T143: 0 | AA143: 0 | AB143: -8.6953 | AP143: 2.82 | AQ143: 0.527 | AR143: 0
F144: 142 | G144: 2.84 | H144: 22.6237 | I144: 3.466796875 | J144: =FOURIER!M144 -> 0 | K144: =FOURIER!N144 -> 0 | N144: 21.78252719 | S144: 0 | T144: 0 | AA144: 0 | AB144: 22.6237 | AP144: 2.84 | AQ144: 0.454 | AR144: 0
F145: 143 | G145: 2.86 | H145: 45.363 | I145: 3.491210938 | J145: =FOURIER!M145 -> 0 | K145: =FOURIER!N145 -> 0 | N145: 21.93592527 | S145: 0 | T145: 0 | AA145: 0 | AB145: 45.363 | AP145: 2.86 | AQ145: 0.389 | AR145: 0
F146: 144 | G146: 2.88 | H146: 30.5435 | I146: 3.515625 | J146: =FOURIER!M146 -> 0 | K146: =FOURIER!N146 -> 0 | N146: 22.08932335 | S146: 0 | T146: 0 | AA146: 0 | AB146: 30.5435 | AP146: 2.88 | AQ146: 0.34 | AR146: 0
F147: 145 | G147: 2.9 | H147: -15.8051 | I147: 3.540039062 | J147: =FOURIER!M147 -> 0 | K147: =FOURIER!N147 -> 0 | N147: 22.24272142 | S147: 0 | T147: 0 | AA147: 0 | AB147: -15.8051 | AP147: 2.9 | AQ147: 0.302 | AR147: 0
F148: 146 | G148: 2.92 | H148: -21.1449 | I148: 3.564453125 | J148: =FOURIER!M148 -> 0 | K148: =FOURIER!N148 -> 0 | N148: 22.3961195 | S148: 0 | T148: 0 | AA148: 0 | AB148: -21.1449 | AP148: 2.92 | AQ148: 0.259 | AR148: 0
F149: 147 | G149: 2.94 | H149: 45.153 | I149: 3.588867188 | J149: =FOURIER!M149 -> 0 | K149: =FOURIER!N149 -> 0 | N149: 22.54951758 | S149: 0 | T149: 0 | AA149: 0 | AB149: 45.153 | AP149: 2.94 | AQ149: 0.21 | AR149: 0
F150: 148 | G150: 2.96 | H150: 87.3918 | I150: 3.61328125 | J150: =FOURIER!M150 -> 0 | K150: =FOURIER!N150 -> 0 | N150: 22.70291566 | S150: 0 | T150: 0 | AA150: 0 | AB150: 87.3918 | AP150: 2.96 | AQ150: 0.177 | AR150: 0
F151: 149 | G151: 2.98 | H151: 51.0029 | I151: 3.637695312 | J151: =FOURIER!M151 -> 0 | K151: =FOURIER!N151 -> 0 | N151: 22.85631374 | S151: 0 | T151: 0 | AA151: 0 | AB151: 51.0029 | AP151: 2.98 | AQ151: 0.176 | AR151: 0
F152: 150 | G152: 3 | H152: 16.024 | I152: 3.662109375 | J152: =FOURIER!M152 -> 0 | K152: =FOURIER!N152 -> 0 | N152: 23.00971182 | S152: 0 | T152: 0 | AA152: 0 | AB152: 16.024 | AP152: 3 | AQ152: 0.196 | AR152: 0
F153: 151 | G153: 3.02 | H153: 43.5031 | I153: 3.686523438 | J153: =FOURIER!M153 -> 0 | K153: =FOURIER!N153 -> 0 | N153: 23.1631099 | S153: 0 | T153: 0 | AA153: 0 | AB153: 43.5031 | AP153: 3.02 | AQ153: 0.223 | AR153: 0
F154: 152 | G154: 3.04 | H154: 92.6716 | I154: 3.7109375 | J154: =FOURIER!M154 -> 0 | K154: =FOURIER!N154 -> 0 | N154: 23.31650798 | S154: 0 | T154: 0 | AA154: 0 | AB154: 92.6716 | AP154: 3.04 | AQ154: 0.269 | AR154: 0
F155: 153 | G155: 3.06 | H155: 83.6719 | I155: 3.735351562 | J155: =FOURIER!M155 -> 0 | K155: =FOURIER!N155 -> 0 | N155: 23.46990605 | S155: 0 | T155: 0 | AA155: 0 | AB155: 83.6719 | AP155: 3.06 | AQ155: 0.348 | AR155: 0
F156: 154 | G156: 3.08 | H156: 15.724 | I156: 3.759765625 | J156: =FOURIER!M156 -> 0 | K156: =FOURIER!N156 -> 0 | N156: 23.62330413 | S156: 0 | T156: 0 | AA156: 0 | AB156: 15.724 | AP156: 3.08 | AQ156: 0.458 | AR156: 0
F157: 155 | G157: 3.1 | H157: -23.0048 | I157: 3.784179688 | J157: =FOURIER!M157 -> 0 | K157: =FOURIER!N157 -> 0 | N157: 23.77670221 | S157: 0 | T157: 0 | AA157: 0 | AB157: -23.0048 | AP157: 3.1 | AQ157: 0.574 | AR157: 0
F158: 156 | G158: 3.12 | H158: -1.3755 | I158: 3.80859375 | J158: =FOURIER!M158 -> 0 | K158: =FOURIER!N158 -> 0 | N158: 23.93010029 | S158: 0 | T158: 0 | AA158: 0 | AB158: -1.3755 | AP158: 3.12 | AQ158: 0.681 | AR158: 0
F159: 157 | G159: 3.14 | H159: 24.2737 | I159: 3.833007812 | J159: =FOURIER!M159 -> 0 | K159: =FOURIER!N159 -> 0 | N159: 24.08349837 | S159: 0 | T159: 0 | AA159: 0 | AB159: 24.2737 | AP159: 3.14 | AQ159: 0.786 | AR159: 0
F160: 158 | G160: 3.16 | H160: 11.6441 | I160: 3.857421875 | J160: =FOURIER!M160 -> 0 | K160: =FOURIER!N160 -> 0 | N160: 24.23689645 | S160: 0 | T160: 0 | AA160: 0 | AB160: 11.6441 | AP160: 3.16 | AQ160: 0.897 | AR160: 0
F161: 159 | G161: 3.18 | H161: -5.1554 | I161: 3.881835938 | J161: =FOURIER!M161 -> 0 | K161: =FOURIER!N161 -> 0 | N161: 24.39029453 | S161: 0 | T161: 0 | AA161: 0 | AB161: -5.1554 | AP161: 3.18 | AQ161: 1.01 | AR161: 0
F162: 160 | G162: 3.2 | H162: 10.3842 | I162: 3.90625 | J162: =FOURIER!M162 -> 0 | K162: =FOURIER!N162 -> 0 | N162: 24.54369261 | S162: 0 | T162: 0 | AA162: 0 | AB162: 10.3842 | AP162: 3.2 | AQ162: 1.12 | AR162: 0
F163: 161 | G163: 3.22 | H163: 52.7129 | I163: 3.930664062 | J163: =FOURIER!M163 -> 0 | K163: =FOURIER!N163 -> 0 | N163: 24.69709068 | S163: 0 | T163: 0 | AA163: 0 | AB163: 52.7129 | AP163: 3.22 | AQ163: 1.233 | AR163: 0
F164: 162 | G164: 3.24 | H164: 110.8811 | I164: 3.955078125 | J164: =FOURIER!M164 -> 0 | K164: =FOURIER!N164 -> 0 | N164: 24.85048876 | S164: 0 | T164: 0 | AA164: 0 | AB164: 110.8811 | AP164: 3.24 | AQ164: 1.364 | AR164: 0
F165: 163 | G165: 3.26 | H165: 170.7893 | I165: 3.979492188 | J165: =FOURIER!M165 -> 0 | K165: =FOURIER!N165 -> 0 | N165: 25.00388684 | S165: 0 | T165: 0 | AA165: 0 | AB165: 170.7893 | AP165: 3.26 | AQ165: 1.536 | AR165: 0
F166: 164 | G166: 3.28 | H166: 208.6481 | I166: 4.00390625 | J166: =FOURIER!M166 -> 0 | K166: =FOURIER!N166 -> 0 | N166: 25.15728492 | S166: 0 | T166: 0 | AA166: 0 | AB166: 208.6481 | AP166: 3.28 | AQ166: 1.772 | AR166: 0
F167: 165 | G167: 3.3 | H167: 232.2574 | I167: 4.028320312 | J167: =FOURIER!M167 -> 0 | K167: =FOURIER!N167 -> 0 | N167: 25.310683 | S167: 0 | T167: 0 | AA167: 0 | AB167: 232.2574 | AP167: 3.3 | AQ167: 2.087 | AR167: 0
F168: 166 | G168: 3.32 | H168: 263.9064 | I168: 4.052734375 | J168: =FOURIER!M168 -> 0 | K168: =FOURIER!N168 -> 0 | N168: 25.46408108 | S168: 0 | T168: 0 | AA168: 0 | AB168: 263.9064 | AP168: 3.32 | AQ168: 2.489 | AR168: 0
F169: 167 | G169: 3.34 | H169: 295.1655 | I169: 4.077148438 | J169: =FOURIER!M169 -> 0 | K169: =FOURIER!N169 -> 0 | N169: 25.61747916 | S169: 0 | T169: 0 | AA169: 0 | AB169: 295.1655 | AP169: 3.34 | AQ169: 2.99 | AR169: 0
F170: 168 | G170: 3.36 | H170: 318.4448 | I170: 4.1015625 | J170: =FOURIER!M170 -> 0 | K170: =FOURIER!N170 -> 0 | N170: 25.77087724 | S170: 0 | T170: 0 | AA170: 0 | AB170: 318.4448 | AP170: 3.36 | AQ170: 3.6 | AR170: 0
F171: 169 | G171: 3.38 | H171: 345.9839 | I171: 4.125976562 | J171: =FOURIER!M171 -> 0 | K171: =FOURIER!N171 -> 0 | N171: 25.92427532 | S171: 0 | T171: 0 | AA171: 0 | AB171: 345.9839 | AP171: 3.38 | AQ171: 4.329 | AR171: 0
F172: 170 | G172: 3.4 | H172: 332.2743 | I172: 4.150390625 | J172: =FOURIER!M172 -> 0 | K172: =FOURIER!N172 -> 0 | N172: 26.07767339 | S172: 0 | T172: 0 | AA172: 0 | AB172: 332.2743 | AP172: 3.4 | AQ172: 5.182 | AR172: 0
F173: 171 | G173: 3.42 | H173: 223.0777 | I173: 4.174804688 | J173: =FOURIER!M173 -> 0 | K173: =FOURIER!N173 -> 0 | N173: 26.23107147 | S173: 0 | T173: 0 | AA173: 0 | AB173: 223.0777 | AP173: 3.42 | AQ173: 6.152 | AR173: 0
F174: 172 | G174: 3.44 | H174: 82.802 | I174: 4.19921875 | J174: =FOURIER!M174 -> 0 | K174: =FOURIER!N174 -> 0 | N174: 26.38446955 | S174: 0 | T174: 0 | AA174: 0 | AB174: 82.802 | AP174: 3.44 | AQ174: 7.193 | AR174: 0
F175: 173 | G175: 3.46 | H175: -33.5044 | I175: 4.223632812 | J175: =FOURIER!M175 -> 0 | K175: =FOURIER!N175 -> 0 | N175: 26.53786763 | S175: 0 | T175: 0 | AA175: 0 | AB175: -33.5044 | AP175: 3.46 | AQ175: 8.25 | AR175: 0
F176: 174 | G176: 3.48 | H176: -158.511 | I176: 4.248046875 | J176: =FOURIER!M176 -> 0 | K176: =FOURIER!N176 -> 0 | N176: 26.69126571 | S176: 0 | T176: 0 | AA176: 0 | AB176: -158.511 | AP176: 3.48 | AQ176: 9.272 | AR176: 0
F177: 175 | G177: 3.5 | H177: -328.275 | I177: 4.272460938 | J177: =FOURIER!M177 -> 0 | K177: =FOURIER!N177 -> 0 | N177: 26.84466379 | S177: 0 | T177: 0 | AA177: 0 | AB177: -328.275 | AP177: 3.5 | AQ177: 10.207 | AR177: 0
F178: 176 | G178: 3.52 | H178: -454.782 | I178: 4.296875 | J178: =FOURIER!M178 -> 0 | K178: =FOURIER!N178 -> 0 | N178: 26.99806187 | S178: 0 | T178: 0 | AA178: 0 | AB178: -454.782 | AP178: 3.52 | AQ178: 10.988 | AR178: 0
F179: 177 | G179: 3.54 | H179: -498.01 | I179: 4.321289062 | J179: =FOURIER!M179 -> 0 | K179: =FOURIER!N179 -> 0 | N179: 27.15145995 | S179: 0 | T179: 0 | AA179: 0 | AB179: -498.01 | AP179: 3.54 | AQ179: 11.565 | AR179: 0
F180: 178 | G180: 3.56 | H180: -505.18 | I180: 4.345703125 | J180: =FOURIER!M180 -> 0 | K180: =FOURIER!N180 -> 0 | N180: 27.30485802 | S180: 0 | T180: 0 | AA180: 0 | AB180: -505.18 | AP180: 3.56 | AQ180: 11.919 | AR180: 0
F181: 179 | G181: 3.58 | H181: -511.42 | I181: 4.370117188 | J181: =FOURIER!M181 -> 0 | K181: =FOURIER!N181 -> 0 | N181: 27.4582561 | S181: 0 | T181: 0 | AA181: 0 | AB181: -511.42 | AP181: 3.58 | AQ181: 12.045 | AR181: 0
F182: 180 | G182: 3.6 | H182: -535.839 | I182: 4.39453125 | J182: =FOURIER!M182 -> 0 | K182: =FOURIER!N182 -> 0 | N182: 27.61165418 | S182: 0 | T182: 0 | AA182: 0 | AB182: -535.839 | AP182: 3.6 | AQ182: 11.943 | AR182: 0
F183: 181 | G183: 3.62 | H183: -587.677 | I183: 4.418945312 | J183: =FOURIER!M183 -> 0 | K183: =FOURIER!N183 -> 0 | N183: 27.76505226 | S183: 0 | T183: 0 | AA183: 0 | AB183: -587.677 | AP183: 3.62 | AQ183: 11.601 | AR183: 0
F184: 182 | G184: 3.64 | H184: -630.576 | I184: 4.443359375 | J184: =FOURIER!M184 -> 0 | K184: =FOURIER!N184 -> 0 | N184: 27.91845034 | S184: 0 | T184: 0 | AA184: 0 | AB184: -630.576 | AP184: 3.64 | AQ184: 11.004 | AR184: 0
F185: 183 | G185: 3.66 | H185: -557.318 | I185: 4.467773438 | J185: =FOURIER!M185 -> 0 | K185: =FOURIER!N185 -> 0 | N185: 28.07184842 | S185: 0 | T185: 0 | AA185: 0 | AB185: -557.318 | AP185: 3.66 | AQ185: 10.139 | AR185: 0
F186: 184 | G186: 3.68 | H186: -351.075 | I186: 4.4921875 | J186: =FOURIER!M186 -> 0 | K186: =FOURIER!N186 -> 0 | N186: 28.2252465 | S186: 0 | T186: 0 | AA186: 0 | AB186: -351.075 | AP186: 3.68 | AQ186: 9.039 | AR186: 0
F187: 185 | G187: 3.7 | H187: -137.931 | I187: 4.516601562 | J187: =FOURIER!M187 -> 0 | K187: =FOURIER!N187 -> 0 | N187: 28.37864458 | S187: 0 | T187: 0 | AA187: 0 | AB187: -137.931 | AP187: 3.7 | AQ187: 7.785 | AR187: 0
F188: 186 | G188: 3.72 | H188: -3.5953 | I188: 4.541015625 | J188: =FOURIER!M188 -> 0 | K188: =FOURIER!N188 -> 0 | N188: 28.53204265 | S188: 0 | T188: 0 | AA188: 0 | AB188: -3.5953 | AP188: 3.72 | AQ188: 6.463 | AR188: 0
F189: 187 | G189: 3.74 | H189: 65.3126 | I189: 4.565429688 | J189: =FOURIER!M189 -> 0 | K189: =FOURIER!N189 -> 0 | N189: 28.68544073 | S189: 0 | T189: 0 | AA189: 0 | AB189: 65.3126 | AP189: 3.74 | AQ189: 5.129 | AR189: 0
F190: 188 | G190: 3.76 | H190: 133.6805 | I190: 4.58984375 | J190: =FOURIER!M190 -> 0 | K190: =FOURIER!N190 -> 0 | N190: 28.83883881 | S190: 0 | T190: 0 | AA190: 0 | AB190: 133.6805 | AP190: 3.76 | AQ190: 3.817 | AR190: 0
F191: 189 | G191: 3.78 | H191: 176.9392 | I191: 4.614257812 | J191: =FOURIER!M191 -> 0 | K191: =FOURIER!N191 -> 0 | N191: 28.99223689 | S191: 0 | T191: 0 | AA191: 0 | AB191: 176.9392 | AP191: 3.78 | AQ191: 2.555 | AR191: 0
F192: 190 | G192: 3.8 | H192: 177.7192 | I192: 4.638671875 | J192: =FOURIER!M192 -> 0 | K192: =FOURIER!N192 -> 0 | N192: 29.14563497 | S192: 0 | T192: 0 | AA192: 0 | AB192: 177.7192 | AP192: 3.8 | AQ192: 1.362 | AR192: 0
F193: 191 | G193: 3.82 | H193: 176.6092 | I193: 4.663085938 | J193: =FOURIER!M193 -> 0 | K193: =FOURIER!N193 -> 0 | N193: 29.29903305 | S193: 0 | T193: 0 | AA193: 0 | AB193: 176.6092 | AP193: 3.82 | AQ193: 0.242 | AR193: 0
F194: 192 | G194: 3.84 | H194: 171.5994 | I194: 4.6875 | J194: =FOURIER!M194 -> 0 | K194: =FOURIER!N194 -> 0 | N194: =2*PI()/B$9/B$6*F194 -> 29.45243113 | S194: =J194*O194-K194*P194 -> 0 | T194: =J194*P194+K194*O194 -> 0 | AA194: 0 | AB194: 171.5994 | AP194: =G194 -> 3.84 | AQ194: -0.803 | AR194: 0
F195: 193 | G195: =B$6*F195 -> 3.86 | H195: 145.9202 | I195: =F195/B$9/B$6 -> 4.711914062 | J195: =FOURIER!M195 -> 0 | K195: =FOURIER!N195 -> 0 | N195: 29.60582921 | S195: 0 | T195: 0 | AA195: =(Y195-Y194)/B$6 -> 0 | AB195: =(AA195-AA194)/B$6+H195 -> 145.9202 | AP195: 3.86 | AQ195: -1.775 | AR195: 0 | AS195: =(AQ195-AQ194)/O$6 ->  | AT195: =(AS195-AS194)/O$6+S195 -> 
F196: 194 | G196: 3.88 | H196: 96.7217 | I196: 4.736328125 | J196: =FOURIER!M196 -> 0 | K196: =FOURIER!N196 -> 0 | N196: 29.75922728 | S196: 0 | T196: 0 | AA196: 0 | AB196: 96.7217 | AP196: 3.88 | AQ196: -2.681 | AR196: 0
F197: 195 | G197: 3.9 | H197: 31.2637 | I197: 4.760742188 | J197: =FOURIER!M197 -> 0 | K197: =FOURIER!N197 -> 0 | N197: 29.91262536 | S197: 0 | T197: 0 | AA197: 0 | AB197: 31.2637 | AP197: 3.9 | AQ197: -3.541 | AR197: 0
F198: 196 | G198: 3.92 | H198: -9.925 | I198: 4.78515625 | J198: =FOURIER!M198 -> 0 | K198: =FOURIER!N198 -> 0 | N198: 30.06602344 | S198: 0 | T198: 0 | AA198: 0 | AB198: -9.925 | AP198: 3.92 | AQ198: -4.377 | AR198: 0
F199: 197 | G199: 3.94 | H199: 14.4642 | I199: 4.809570312 | J199: =FOURIER!M199 -> 0 | K199: =FOURIER!N199 -> 0 | N199: 30.21942152 | S199: 0 | T199: 0 | AA199: 0 | AB199: 14.4642 | AP199: 3.94 | AQ199: -5.203 | AR199: 0
F200: 198 | G200: 3.96 | H200: 61.8028 | I200: 4.833984375 | J200: =FOURIER!M200 -> 0 | K200: =FOURIER!N200 -> 0 | N200: 30.3728196 | S200: 0 | T200: 0 | AA200: 0 | AB200: 61.8028 | AP200: 3.96 | AQ200: -6.008 | AR200: 0
... 1849 more rows
